Workbook

Sheet 施設利用申込書
A2: 福岡県立総合プール | BC2: =_xludf.SWITCH(I9,1,"占有利用",2,"学校利用",3,"団体利用","") -> 
A3: 施設長 殿 | BC3: I9,2,"※学校利用、団体利用の場合は所定の利用申込書も提出していただく必要があります。",3,"※学校利用、団体利用の場合は所定の利用申込書も提出していただく必要があります。","")
A4: 公社使用欄 | I4: 予約登録済 | P4: 本申込書発送済 | W4: 備 考
I5: 月 日 | P5: 月 日
A8: 申込日 | I8: 令和 | N8: 年 | R8: 月 | V8: 日 | W8: 団体コード
A9: 利 用 方 法 | L9: =IF(I9=1,"占有利用",IF(I9=2,"学校利用",IF(I9=3,"団体利用",IF(I9="","")))) ->  | BJ9: 1 | BK9: 占有利用
A10: （該当の利用方法を○で囲む） | I10: =IF(I9=2,"※学校利用、団体利用の場合は所定の利用申込書も提出していただく必要があります。",IF(I9=3,"※学校利用、団体利用の場合は所定の利用申込書も提出していただく必要があります。",IF(I9=1,"",IF(I9="","")))) ->  | BJ10: 2 | BK10: 学校利用
A11: 利用申込団体名 | BJ11: 3 | BK11: 団体利用(30名以上)
BJ12: 4 | BK12: コース利用(プール:30名以下)
A13: フリガナ
A14: 申込責任者氏名
BK15: アマチュア
A16: 責任者連絡先 | I16: TEL | K16: ( | P16: ) | V16: - | AC16: FAX | AE16: ( | AJ16: ) | AP16: - | BK16: プロ
I17: Mail
A18: 利用目的（大会名等） | BK18: =L16&-Q16&-W16 -> 00
A19: 選手･役員数 | L19: 人 | N19: 観 客 数 | AA19: 人 | AC19: ※１ 使用料通知の希望 | BK19: 要
A20: 入場徴収の有無 | M20: ( | S20: 円) | T20: ) | U20: アマ・プロ区分 | BK20: 不要 | BU20: =_xlfn.SWITCH(AE20,"アマチュア","アマ","プロ","プロ","","") -> 
A21: 使用料減免希望の有無 | N21: （ | O21: 理由： | BK21: 有
A22: 主催者名（大会等） | BK22: 無
A23: 後援者名（大会等）
A24: 関係書類送先 | K24: 〒 | O24: -
I25: 住所
A26: (減免・請求書希望の方のみ) | I26: 氏名
A27: 利用日 | I27: 利用施設名 | R27: 利 用 時 間 | AE27: 附 属 設 備 使 用 の 有 無
F29: =IF(ISBLANK(A29),"",TEXT(A29,"(aaa)")) ->  | W29: ～ | AE29: 電光掲示板（固定式・移動式）
F30: =IF(ISBLANK(A30),"",TEXT(A30,"(aaa)")) ->  | W30: ～ | BG30: =A29&C29&D29&E29&F29&G29&H29 ->  | BJ30: 09:00:00
W31: ～ | AE31: 自動計時装置 | BG31: 50ｍプール | BJ31: 09:30:00
W32: ～ | BG32: 25ｍプール | BJ32: 10:00:00
W33: ～ | AE33: 水球用３５秒計 | BG33: 飛込プール | BJ33: 10:30:00
W34: ～ | BG34: 会議室 | BJ34: 11:00:00
W35: ～ | AE35: 競技用具（水泳・スケート） | BG35: 応接室 | BJ35: 11:30:00
W36: ～ | BG36: スナックルーム | BJ36: 12:00:00
W37: ～ | AE37: ペースタイマー | BG37: スケートリンク | BJ37: 12:30:00
W38: ～ | BJ38: 13:00:00
W39: ～ | AE39: 審判台（水球用） | BJ39: 13:30:00
W40: ～ | BJ40: 14:00:00
W41: ～ | AE41: アイスホッケーゴールポスト | BJ41: 14:30:00
W42: ～ | BJ42: 15:00:00
W43: ～ | AE43: 放送設備 | BJ43: 15:30:00
W44: ～ | BJ44: 16:00:00
BJ45: 16:30:00
A46: ＜ご記入の際は以下の点にご注意ください＞ | AA46: プール案内 | BJ46: 17:00:00
A47: ○申込者は太枠の中のみ記入してください。 | AA47: 施設 | AH47: 設 備 | BJ47: 17:30:00
A48: ○お電話での仮予約後に、この本申込書の提出をお願いします。 | AA48: ５０ｍプール | AH48: ５０ｍ×8コース 水深：２．０～２．２ｍ | BJ48: 18:00:00
A49: ○初めてご利用の団体は団体登録（別紙）が必要です。 | BJ49: 18:30:00
A50: ○施設使用料は当日のご利用前までにお支払いください。 | AA50: ２５ｍプール | AH50: 25ｍ×８コース 水深：１．０～１．４ｍ | BJ50: 19:00:00
A51: ○団体登録内容に変更がある場合（代表者の変更等）は、団体登録申請書（変更）を提出していただく必要があります。 | BJ51: 19:30:00
AA52: 飛び込みプール | AH52: ２０ｍ×２２ｍ 水深：５ｍ | BJ52: 20:00:00
A53: ○キャンセル・時間帯の変更は（当日を含まない）３日前の１７時までとなっております。その際は下記の電話番号までご連絡をお願いします。 なお、上記の期限を過ぎ、キャンセル・時間帯の変更を行う場合は、キャンセル料が発生しますのでご了承ください。 | BJ53: 20:30:00
AA54: スケートリンク | AH54: ６０ｍ×３０ｍ | BJ54: 21:00:00
A56: ○申込施設の使用料通知を希望する団体には、事前に施設使用料金の詳細をお知らせします。※１の該当する箇所に○を記入してください。なお、未記入の場合は希望なしとみなし施設使用料金のお知らせはいたしませんのでご了承ください。 | AA56: 研修室案内
AA57: 会議室 | AH57: 定員 50名
A59: 指定管理者 アクシオン福岡プロジェクトチーム TEL ０９２－６２３－４４００ FAX ０９２－６１２－２５２６

Sheet 領収書(森本改訂版) (hidden)
I3: 施 設 利 用 申 込 書
I4: 施 設 利 用 料 減 免 承 認 申 請 書
K5: 施 設 利 用 料 等 領 収 書
AU6: =TODAY() -> 2023-08-20 | BV6: =P26 -> 00:00:00 | BW6: =L26 -> 00:00:00 | BX6: =BV6-BW6 -> 00:00:00 | BY6: =BX6*24 -> 0
J7: 福岡県立総合プール 所長 殿 | BV7: =P28 -> 00:00:00 | BW7: =L28 -> 00:00:00 | BX7: =BV7-BW7 -> 00:00:00 | BY7: =BX7*24 -> 0
J8: 利用者 | BV8: =P30 -> 00:00:00 | BW8: =L30 -> 00:00:00 | BX8: =BV8-BW8 -> 00:00:00 | BY8: 0
Q9: 所在地） | V9: 〒 | X9: =施設利用申込書!L24&施設利用申込書!O24&施設利用申込書!P24 -> - | BV9: =P32 -> 00:00:00 | BW9: =L32 -> 00:00:00 | BX9: 00:00:00 | BY9: 0
V10: =施設利用申込書!L25 -> 0 | BH10: 減免番号 | BV10: =P34 -> 00:00:00 | BW10: =L34 -> 00:00:00 | BX10: 00:00:00 | BY10: 0
BH11: 0 | BQ11: 有 | BV11: =P36 -> 00:00:00 | BW11: =L36 -> 00:00:00 | BX11: 00:00:00 | BY11: 0
Q12: 名 称 ） | V12: =施設利用申込書!I11 -> 0 | BQ12: 無 | BV12: =P38 -> 00:00:00 | BW12: =L38 -> 00:00:00 | BX12: =BV12-BW12 -> 00:00:00 | BY12: 0
BV13: =P40 -> 00:00:00 | BW13: =L40 -> 00:00:00 | BX13: 00:00:00 | BY13: 0
Q14: 電 話 ） | V14: =施設利用申込書!BK18 -> 00 | BV14: =P42 -> 00:00:00 | BW14: =L42 -> 00:00:00 | BX14: =BV14-BW14 -> 00:00:00 | BY14: 0
BV15: =P44 -> 00:00:00 | BW15: =L44 -> 00:00:00 | BX15: 00:00:00 | BY15: 0
J16: 主催者名 | Q16: =施設利用申込書!I22 -> 0 | BV16: =P46 -> 00:00:00 | BW16: =L46 -> 00:00:00 | BX16: =BV16-BW16 -> 00:00:00 | BY16: 0
J17: 後援者名 | Q17: =施設利用申込書!I23 -> 0 | BV17: =P48 -> 00:00:00 | BW17: =L48 -> 00:00:00 | BX17: 00:00:00 | BY17: 0
J18: 代表職氏名 | BV18: =P50 -> 00:00:00 | BW18: =L50 -> 00:00:00 | BX18: 00:00:00 | BY18: 0
J19: 責任者名 | Q19: =施設利用申込書!I14 -> 0 | BV19: =P52 -> 00:00:00 | BW19: =L52 -> 00:00:00 | BX19: 00:00:00 | BY19: 0
J20: 利用目的 | Q20: =施設利用申込書!I18 -> 0 | BV20: =P54 -> 00:00:00 | BW20: =L54 -> 00:00:00 | BX20: 00:00:00 | BY20: 0
J21: 利用人員 | Q21: =施設利用申込書!G19+施設利用申込書!U19 -> 0 | Y21: 人 | AA21: 区分 | AG21: =施設利用申込書!BU20 ->  | AK21: ( | AL21: =施設利用申込書!I20 -> 0 | AO21: ) | AP21: 金額 | AU21: =施設利用申込書!N20 -> 0 | BC21: 円 | BV21: =P56 -> 00:00:00 | BW21: =L56 -> 00:00:00 | BX21: =BV21-BW21 -> 00:00:00 | BY21: 0
J22: 減免 | Q22: =施設利用申込書!I20 -> 0 | S22: =IFERROR(_xlfn.SWITCH(Q22,"有","福岡県立体育・スポーツ施設使用料条例施行規則","無",""),"") ->  | AP22: =IFERROR(_xlfn.SWITCH(BH11,"無","",1,"第五条第1項第一号",2,"第五条第1項第二号",3,"第五条第1項第三号",4,"第五条第1項第四号",5,"第五条第1項第五号"),"") -> 
J24: 利用日時 | W24: 利用施設 | AK24: 使用料減免額 | AU24: 減免後使用料 | BI24: 減免前金額 | BR24: 区分 | BS24: 平祝 | BT24: 施設 | BU24: 時間 | BV24: 利用時間 | BW24: 会議室 | BX24: 飛込 | BY24: 超過料金 (1時間当たり) | CE24: 区分 | CF24: 平祝 | CG24: 施設 | CH24: 時間 | CI24: コード | CK24: 折り返し値 | CU24: 料金表 | CZ24: A | DA24: B | DB24: C | DC24: D | DD24: E | DE24: F | DF24: コード表 | DH24: A | DI24: B | DJ24: C | DK24: D | DL24: E | DM24: F
J25: =施設利用申込書!A29 -> 00:00:00 | Q25: =施設利用申込書!F29 ->  | W25: =施設利用申込書!I29 -> 0 | AK25: =BI25 ->  | AS25: 円 | BC25: 円 | BE25: =BI25*0.5 ->  | BI25: =IFERROR(VLOOKUP(CI25,料金マスタ!$A$2:$B$145,2,),"") ->  | BP25: 始 | BQ25: =L26 -> 00:00:00 | BV25: =BY6 -> 0 | BW25: =BV25*560 -> 0 | BX25: =5690*BW25 -> 0 | BY25: =IFERROR(BI25/BW25*1.5,"") ->  | CE25: =_xlfn.SWITCH(BR25,"アマ",1,"入徴",2,"プロ",3,"") ->  | CF25: =_xlfn.SWITCH(BS25,"平日",1,"休日",2,"") ->  | CG25: =_xlfn.SWITCH(BT25,"50ｍ",1,"25ｍ夏",2,"25ｍ冬",3,"スケ",4,"") ->  | CH25: =_xlfn.SWITCH(BU25,"A",1,"B",2,"C",3,"D",4,"E",5,"F",6,"") ->  | CK25: =CE25&CF25&CG25&CH25 ->  | CM25: 1134 | CZ25: 9-13 | DA25: 13-17 | DB25: 17-21 | DC25: 9-17 | DD25: 13-21 | DE25: 9-21 | DH25: 9-13 | DI25: 13-17 | DJ25: 17-21 | DK25: 9-17 | DL25: 13-21 | DM25: 9-21
L26: =施設利用申込書!R29 -> 00:00:00 | O26: ～ | P26: =施設利用申込書!X29 -> 00:00:00 | AS26: 円 | BE26: =BI25*0.2 ->  | BP26: 終 | BQ26: =P26 -> 00:00:00 | CU26: アマ | CV26: 平日 | CX26: 50ｍ | CY26: 1 | CZ26: 50120 | DA26: 50120 | DB26: 62650 | DC26: 100250 | DD26: 112780 | DE26: 162910 | DF26: アマ | DG26: 平日 | DH26: 1111 | DI26: 1112 | DJ26: 1113 | DK26: 1114 | DL26: 1115 | DM26: 1116
J27: =施設利用申込書!A30 -> 00:00:00 | Q27: =施設利用申込書!F31 ->  | W27: =施設利用申込書!I30 -> 0 | AK27: =BI27 ->  | AS27: 円 | BC27: 円 | BE27: =BI27*0.5 ->  | BI27: =IFERROR(VLOOKUP(CI27,料金マスタ!$A$2:$B$145,2,),"") ->  | BV27: =BY7 -> 0 | BW27: =BV27*560 -> 0 | BX27: =5690*BW27 -> 0 | BY27: =IFERROR(BI27/BW27*1.5,"") ->  | CE27: =_xlfn.SWITCH(BR27,"アマ",1,"入徴",2,"プロ",3,"") ->  | CF27: =_xlfn.SWITCH(BS27,"平日",1,"休日",2,"") ->  | CG27: =_xlfn.SWITCH(BT27,"50ｍ",1,"25ｍ夏",2,"25ｍ冬",3,"スケ",4,"") ->  | CH27: =_xlfn.SWITCH(BU27,"A",1,"B",2,"C",3,"D",4,"E",5,"F",6,"") ->  | CK27: =CE27&CF27&CG27&CH27 ->  | CW27: 夏 | CX27: 25ｍ夏 | CY27: 2 | CZ27: 34170 | DA27: 34170 | DB27: 42150 | DC27: 68350 | DD27: 76330 | DE27: 110510 | DH27: 1121 | DI27: 1122 | DJ27: 1123 | DK27: 1124 | DL27: 1125 | DM27: 1126
L28: =施設利用申込書!R30 -> 00:00:00 | O28: ～ | P28: =施設利用申込書!X30 -> 00:00:00 | AS28: 円 | BE28: =BI27*0.2 ->  | CW28: 冬 | CX28: 25ｍ冬 | CY28: 3 | CZ28: 51260 | DA28: 51260 | DB28: 63790 | DC28: 102530 | DD28: 115060 | DE28: 166330 | DH28: 1131 | DI28: 1132 | DJ28: 1133 | DK28: 1134 | DL28: 1135 | DM28: 1136
J29: =施設利用申込書!A31 -> 00:00:00 | Q29: =施設利用申込書!F31 ->  | W29: =施設利用申込書!I31 -> 0 | AK29: =BI29 ->  | AS29: 円 | BC29: 円 | BE29: =BI29*0.5 ->  | BI29: =IFERROR(VLOOKUP(CI29,料金マスタ!$A$2:$B$145,2,),"") ->  | BV29: =BY8 -> 0 | BW29: =BV29*560 -> 0 | BX29: =5690*BW29 -> 0 | BY29: =IFERROR(BI29/BW29*1.5,"") ->  | CE29: =_xlfn.SWITCH(BR29,"アマ",1,"入徴",2,"プロ",3,"") ->  | CF29: =_xlfn.SWITCH(BS29,"平日",1,"休日",2,"") ->  | CG29: =_xlfn.SWITCH(BT29,"50ｍ",1,"25ｍ夏",2,"25ｍ冬",3,"スケ",4,"") ->  | CH29: =_xlfn.SWITCH(BU29,"A",1,"B",2,"C",3,"D",4,"E",5,"F",6,"") ->  | CK29: =CE29&CF29&CG29&CH29 ->  | CX29: スケ | CY29: 4 | CZ29: 66070 | DA29: 66070 | DB29: 83160 | DC29: 132150 | DD29: 149240 | DE29: 215320 | DH29: 1141 | DI29: 1142 | DJ29: 1143 | DK29: 1144 | DL29: 1145 | DM29: 1146
L30: =施設利用申込書!R31 -> 00:00:00 | O30: ～ | P30: =施設利用申込書!X31 -> 00:00:00 | AS30: 円 | BE30: =BI29*0.2 ->  | CV30: 休日 | CX30: 50ｍ | CY30: 5 | CZ30: =CZ26*1.2 -> 60144 | DA30: =DA26*1.2 -> 60144 | DB30: 75180 | DC30: 120300 | DD30: 135336 | DE30: 195492 | DG30: 休日 | DH30: 1211 | DI30: 1212 | DJ30: 1213 | DK30: 1214 | DL30: 1215 | DM30: 1216
J31: =施設利用申込書!A32 -> 00:00:00 | Q31: =施設利用申込書!F32 ->  | W31: =施設利用申込書!I32 -> 0 | AK31: =BI31 ->  | AS31: 円 | BC31: 円 | BE31: =BI31*0.5 ->  | BI31: =IFERROR(VLOOKUP(CI31,料金マスタ!$A$2:$B$145,2,),"") ->  | BV31: =BY9 -> 0 | BW31: =BV31*560 -> 0 | BX31: =5690*BW31 -> 0 | BY31: =IFERROR(BI31/BW31*1.5,"") ->  | CE31: =_xlfn.SWITCH(BR31,"アマ",1,"入徴",2,"プロ",3,"") ->  | CF31: =_xlfn.SWITCH(BS31,"平日",1,"休日",2,"") ->  | CG31: =_xlfn.SWITCH(BT31,"50ｍ",1,"25ｍ夏",2,"25ｍ冬",3,"スケ",4,"") ->  | CH31: =_xlfn.SWITCH(BU31,"A",1,"B",2,"C",3,"D",4,"E",5,"F",6,"") ->  | CK31: =CE31&CF31&CG31&CH31 ->  | CX31: 25ｍ夏 | CY31: 6 | CZ31: =CZ27*1.2 -> 41004 | DA31: 41004 | DB31: 50580 | DC31: 82020 | DD31: 91596 | DE31: 132612 | DH31: 1221 | DI31: 1222 | DJ31: 1223 | DK31: 1224 | DL31: 1225 | DM31: 1226
L32: =施設利用申込書!R32 -> 00:00:00 | O32: ～ | P32: =施設利用申込書!X32 -> 00:00:00 | AS32: 円 | BE32: =BI31*0.2 ->  | CX32: 25ｍ冬 | CY32: 7 | CZ32: 61512 | DA32: 61512 | DB32: 76548 | DC32: 123036 | DD32: 138072 | DE32: 199596 | DH32: 1231 | DI32: 1232 | DJ32: 1233 | DK32: 1234 | DL32: 1235 | DM32: 1236
J33: =施設利用申込書!A33 -> 00:00:00 | Q33: =施設利用申込書!F33 ->  | W33: =施設利用申込書!I33 -> 0 | AK33: =BI33 ->  | AS33: 円 | BC33: 円 | BE33: =BI33*0.5 ->  | BI33: =IFERROR(VLOOKUP(CI33,料金マスタ!$A$2:$B$145,2,),"") ->  | BV33: =BY10 -> 0 | BW33: =BV33*560 -> 0 | BX33: =5690*BW33 -> 0 | BY33: =IFERROR(BI33/BW33*1.5,"") ->  | CE33: =_xlfn.SWITCH(BR33,"アマ",1,"入徴",2,"プロ",3,"") ->  | CF33: =_xlfn.SWITCH(BS33,"平日",1,"休日",2,"") ->  | CG33: =_xlfn.SWITCH(BT33,"50ｍ",1,"25ｍ夏",2,"25ｍ冬",3,"スケ",4,"") ->  | CH33: =_xlfn.SWITCH(BU33,"A",1,"B",2,"C",3,"D",4,"E",5,"F",6,"") ->  | CK33: =CE33&CF33&CG33&CH33 ->  | CX33: スケ | CY33: 8 | CZ33: =CZ29*1.2 -> 79284 | DA33: 79284 | DB33: 99792 | DC33: 158580 | DD33: 179088 | DE33: 258384 | DH33: 1241 | DI33: 1242 | DJ33: 1243 | DK33: 1244 | DL33: 1245 | DM33: 1246
L34: =施設利用申込書!R33 -> 00:00:00 | O34: ～ | P34: =施設利用申込書!X33 -> 00:00:00 | AS34: 円 | BE34: =BI33*0.2 ->  | CU34: 入徴 | CV34: 平日 | CX34: 50ｍ | CY34: 1 | CZ34: 150380 | DA34: 150380 | DB34: 187980 | DC34: 300770 | DD34: 338360 | DE34: 488750 | DF34: 入徴 | DG34: 平日 | DH34: 2111 | DI34: 2112 | DJ34: 2113 | DK34: 2114 | DL34: 2115 | DM34: 2116
J35: =施設利用申込書!A34 -> 00:00:00 | Q35: =施設利用申込書!F34 ->  | W35: =施設利用申込書!I34 -> 0 | AK35: =BI35 ->  | AS35: 円 | BC35: 円 | BE35: =BI35*0.5 ->  | BI35: =IFERROR(VLOOKUP(CI35,料金マスタ!$A$2:$B$145,2,),"") ->  | BV35: =BY14 -> 0 | BW35: =BV35*560 -> 0 | BX35: =5690*BW35 -> 0 | BY35: =IFERROR(BI35/BW35*1.5,"") ->  | CE35: =_xlfn.SWITCH(BR35,"アマ",1,"入徴",2,"プロ",3,"") ->  | CF35: =_xlfn.SWITCH(BS35,"平日",1,"休日",2,"") ->  | CG35: =_xlfn.SWITCH(BT35,"50ｍ",1,"25ｍ夏",2,"25ｍ冬",3,"スケ",4,"") ->  | CH35: =_xlfn.SWITCH(BU35,"A",1,"B",2,"C",3,"D",4,"E",5,"F",6,"") ->  | CK35: =CE35&CF35&CG35&CH35 ->  | CW35: 夏 | CX35: 25ｍ夏 | CY35: 2 | CZ35: 102530 | DA35: 102530 | DB35: 126460 | DC35: 205070 | DD35: 228990 | DE35: 331530 | DH35: 2121 | DI35: 2122 | DJ35: 2123 | DK35: 2124 | DL35: 2125 | DM35: 2126
L36: =施設利用申込書!R34 -> 00:00:00 | O36: ～ | P36: =施設利用申込書!X34 -> 00:00:00 | AS36: 円 | BE36: =BI35*0.2 ->  | CW36: 冬 | CX36: 25ｍ冬 | CY36: 3 | CZ36: 153800 | DA36: 153800 | DB36: 191400 | DC36: 307600 | DD36: 345200 | DE36: 499000 | DH36: 2131 | DI36: 2132 | DJ36: 2133 | DK36: 2134 | DL36: 2135 | DM36: 2136
J37: =施設利用申込書!A35 -> 00:00:00 | Q37: =施設利用申込書!F35 ->  | W37: =施設利用申込書!I35 -> 0 | AK37: =BI37 ->  | AS37: 円 | BC37: 円 | BE37: =BI37*0.5 ->  | BI37: =IFERROR(VLOOKUP(CI37,料金マスタ!$A$2:$B$145,2,),"") ->  | BV37: =BY11 -> 0 | BW37: =BV37*560 -> 0 | BX37: =5690*BW37 -> 0 | BY37: =IFERROR(BI37/BW37*1.5,"") ->  | CE37: =_xlfn.SWITCH(BR37,"アマ",1,"入徴",2,"プロ",3,"") ->  | CF37: =_xlfn.SWITCH(BS37,"平日",1,"休日",2,"") ->  | CG37: =_xlfn.SWITCH(BT37,"50ｍ",1,"25ｍ夏",2,"25ｍ冬",3,"スケ",4,"") ->  | CH37: =_xlfn.SWITCH(BU37,"A",1,"B",2,"C",3,"D",4,"E",5,"F",6,"") ->  | CK37: =CE37&CF37&CG37&CH37 ->  | CX37: スケ | CY37: 4 | CZ37: 198230 | DA37: 198230 | DB37: 249500 | DC37: 396470 | DD37: 447740 | DE37: 645970 | DH37: 2141 | DI37: 2142 | DJ37: 2143 | DK37: 2144 | DL37: 2145 | DM37: 2146
L38: =施設利用申込書!R35 -> 00:00:00 | O38: ～ | P38: =施設利用申込書!X35 -> 00:00:00 | AS38: 円 | BE38: =BI37*0.2 ->  | CV38: 休日 | CX38: 50ｍ | CY38: 5 | CZ38: =CZ34*1.2 -> 180456 | DA38: =DA34*1.2 -> 180456 | DB38: 225576 | DC38: 360924 | DD38: 406032 | DE38: 586500 | DG38: 休日 | DH38: 2211 | DI38: 2212 | DJ38: 2213 | DK38: 2214 | DL38: 2215 | DM38: 2216
J39: =施設利用申込書!A36 -> 00:00:00 | Q39: =施設利用申込書!F36 ->  | W39: =施設利用申込書!I36 -> 0 | AK39: =BI39 ->  | AS39: 円 | BC39: 円 | BE39: =BI39*0.5 ->  | BI39: =IFERROR(VLOOKUP(CI39,料金マスタ!$A$2:$B$145,2,),"") ->  | BV39: =BY19 -> 0 | BW39: =BV39*560 -> 0 | BX39: =5690*BW39 -> 0 | BY39: =IFERROR(BI39/BW39*1.5,"") ->  | CE39: =_xlfn.SWITCH(BR39,"アマ",1,"入徴",2,"プロ",3,"") ->  | CF39: =_xlfn.SWITCH(BS39,"平日",1,"休日",2,"") ->  | CG39: =_xlfn.SWITCH(BT39,"50ｍ",1,"25ｍ夏",2,"25ｍ冬",3,"スケ",4,"") ->  | CH39: =_xlfn.SWITCH(BU39,"A",1,"B",2,"C",3,"D",4,"E",5,"F",6,"") ->  | CK39: =CE39&CF39&CG39&CH39 ->  | CX39: 25ｍ夏 | CY39: 6 | CZ39: =CZ35*1.2 -> 123036 | DA39: 123036 | DB39: 151752 | DC39: 246084 | DD39: 274788 | DE39: 397836 | DH39: 2221 | DI39: 2222 | DJ39: 2223 | DK39: 2224 | DL39: 2225 | DM39: 2226
L40: =施設利用申込書!R36 -> 00:00:00 | O40: ～ | P40: =施設利用申込書!X36 -> 00:00:00 | AS40: 円 | BE40: =BI39*0.2 ->  | CX40: 25ｍ冬 | CY40: 7 | CZ40: 184560 | DA40: 184560 | DB40: 229680 | DC40: 369120 | DD40: 414240 | DE40: 598800 | DH40: 2231 | DI40: 2232 | DJ40: 2233 | DK40: 2234 | DL40: 2235 | DM40: 2236
J41: =施設利用申込書!A37 -> 00:00:00 | Q41: =施設利用申込書!F37 ->  | W41: =施設利用申込書!I37 -> 0 | AK41: =BI41 ->  | AS41: 円 | BC41: 円 | BE41: =BI41*0.5 ->  | BI41: =IFERROR(VLOOKUP(CI41,料金マスタ!$A$2:$B$145,2,),"") ->  | BV41: =BY12 -> 0 | BW41: =BV41*560 -> 0 | BX41: =5690*BW41 -> 0 | BY41: =IFERROR(BI41/BW41*1.5,"") ->  | CE41: =_xlfn.SWITCH(BR41,"アマ",1,"入徴",2,"プロ",3,"") ->  | CF41: =_xlfn.SWITCH(BS41,"平日",1,"休日",2,"") ->  | CG41: =_xlfn.SWITCH(BT41,"50ｍ",1,"25ｍ夏",2,"25ｍ冬",3,"スケ",4,"") ->  | CH41: =_xlfn.SWITCH(BU41,"A",1,"B",2,"C",3,"D",4,"E",5,"F",6,"") ->  | CK41: =CE41&CF41&CG41&CH41 ->  | CX41: スケ | CY41: 8 | CZ41: =CZ37*1.2 -> 237876 | DA41: 237876 | DB41: 299400 | DC41: 475764 | DD41: 537288 | DE41: 775164 | DH41: 2241 | DI41: 2242 | DJ41: 2243 | DK41: 2244 | DL41: 2245 | DM41: 2246
L42: =施設利用申込書!R37 -> 00:00:00 | O42: ～ | P42: =施設利用申込書!X37 -> 00:00:00 | AS42: 円 | BE42: =BI41*0.2 ->  | CU42: プロ | CV42: 平日 | CX42: 50ｍ | CY42: 1 | CZ42: 300770 | DA42: 300770 | DB42: 975960 | DC42: 601540 | DD42: 676730 | DE42: 977500 | DF42: プロ | DG42: 平日 | DH42: 3111 | DI42: 3112 | DJ42: 3113 | DK42: 3114 | DL42: 3115 | DM42: 3116
J43: =施設利用申込書!A38 -> 00:00:00 | Q43: =施設利用申込書!F38 ->  | W43: =施設利用申込書!I38 -> 0 | AK43: =BI43 ->  | AS43: 円 | BC43: 円 | BE43: =BI43*0.5 ->  | BI43: =IFERROR(VLOOKUP(CI43,料金マスタ!$A$2:$B$145,2,),"") ->  | BV43: =BY13 -> 0 | BW43: =BV43*560 -> 0 | BX43: =5690*BW43 -> 0 | BY43: =IFERROR(BI43/BW43*1.5,"") ->  | CE43: =_xlfn.SWITCH(BR43,"アマ",1,"入徴",2,"プロ",3,"") ->  | CF43: =_xlfn.SWITCH(BS43,"平日",1,"休日",2,"") ->  | CG43: =_xlfn.SWITCH(BT43,"50ｍ",1,"25ｍ夏",2,"25ｍ冬",3,"スケ",4,"") ->  | CH43: =_xlfn.SWITCH(BU43,"A",1,"B",2,"C",3,"D",4,"E",5,"F",6,"") ->  | CK43: =CE43&CF43&CG43&CH43 ->  | CW43: 夏 | CX43: 25ｍ夏 | CY43: 2 | CZ43: 102530 | DA43: 102530 | DB43: 126460 | DC43: 205070 | DD43: 228990 | DE43: 331530 | DH43: 3121 | DI43: 3122 | DJ43: 3123 | DK43: 3124 | DL43: 3125 | DM43: 3126
L44: =施設利用申込書!R38 -> 00:00:00 | O44: ～ | P44: =施設利用申込書!X38 -> 00:00:00 | AS44: 円 | BE44: =BI43*0.2 ->  | CW44: 冬 | CX44: 25ｍ冬 | CY44: 3 | CZ44: 153800 | DA44: 153800 | DB44: 191400 | DC44: 307600 | DD44: 345200 | DE44: 499000 | DH44: 3131 | DI44: 3132 | DJ44: 3133 | DK44: 3134 | DL44: 3135 | DM44: 3136
J45: =施設利用申込書!A39 -> 00:00:00 | Q45: =施設利用申込書!F40 ->  | W45: =施設利用申込書!I40 -> 0 | AK45: =BI45 ->  | AS45: 円 | BC45: 円 | BE45: =BI45*0.5 ->  | BI45: =IFERROR(VLOOKUP(CI45,料金マスタ!$A$2:$B$145,2,),"") ->  | BV45: =BY14 -> 0 | BW45: =BV45*560 -> 0 | BX45: =5690*BW45 -> 0 | BY45: =IFERROR(BI45/BW45*1.5,"") ->  | CE45: =_xlfn.SWITCH(BR45,"アマ",1,"入徴",2,"プロ",3,"") ->  | CF45: =_xlfn.SWITCH(BS45,"平日",1,"休日",2,"") ->  | CG45: =_xlfn.SWITCH(BT45,"50ｍ",1,"25ｍ夏",2,"25ｍ冬",3,"スケ",4,"") ->  | CH45: =_xlfn.SWITCH(BU45,"A",1,"B",2,"C",3,"D",4,"E",5,"F",6,"") ->  | CW45: 夏 | CX45: 25ｍ夏 | CY45: 2 | CZ45: 102530 | DA45: 102530 | DB45: 126460 | DC45: 205070 | DD45: 228990 | DE45: 331530 | DH45: 3121 | DI45: 3122 | DJ45: 3123 | DK45: 3124 | DL45: 3125 | DM45: 3126
L46: =施設利用申込書!R39 -> 00:00:00 | O46: ～ | P46: =施設利用申込書!X39 -> 00:00:00 | AS46: 円 | BE46: =BI45*0.2 ->  | CW46: 冬 | CX46: 25ｍ冬 | CY46: 3 | CZ46: 153800 | DA46: 153800 | DB46: 191400 | DC46: 307600 | DD46: 345200 | DE46: 499000 | DH46: 3131 | DI46: 3132 | DJ46: 3133 | DK46: 3134 | DL46: 3135 | DM46: 3136
J47: =施設利用申込書!A40 -> 00:00:00 | Q47: =施設利用申込書!F42 ->  | W47: =施設利用申込書!I42 -> 0 | AK47: =BI47 ->  | AS47: 円 | BC47: 円 | BE47: =BI47*0.5 ->  | BI47: =IFERROR(VLOOKUP(CI47,料金マスタ!$A$2:$B$145,2,),"") ->  | BV47: =BY15 -> 0 | BW47: =BV47*560 -> 0 | BX47: =5690*BW47 -> 0 | BY47: =IFERROR(BI47/BW47*1.5,"") ->  | CE47: =_xlfn.SWITCH(BR47,"アマ",1,"入徴",2,"プロ",3,"") ->  | CF47: =_xlfn.SWITCH(BS47,"平日",1,"休日",2,"") ->  | CG47: =_xlfn.SWITCH(BT47,"50ｍ",1,"25ｍ夏",2,"25ｍ冬",3,"スケ",4,"") ->  | CH47: =_xlfn.SWITCH(BU47,"A",1,"B",2,"C",3,"D",4,"E",5,"F",6,"") ->  | CW47: 夏 | CX47: 25ｍ夏 | CY47: 2 | CZ47: 102530 | DA47: 102530 | DB47: 126460 | DC47: 205070 | DD47: 228990 | DE47: 331530 | DH47: 3121 | DI47: 3122 | DJ47: 3123 | DK47: 3124 | DL47: 3125 | DM47: 3126
L48: =施設利用申込書!R40 -> 00:00:00 | O48: ～ | P48: =施設利用申込書!X40 -> 00:00:00 | AS48: 円 | BE48: =BI47*0.2 ->  | CW48: 冬 | CX48: 25ｍ冬 | CY48: 3 | CZ48: 153800 | DA48: 153800 | DB48: 191400 | DC48: 307600 | DD48: 345200 | DE48: 499000 | DH48: 3131 | DI48: 3132 | DJ48: 3133 | DK48: 3134 | DL48: 3135 | DM48: 3136
J49: =施設利用申込書!A41 -> 00:00:00 | Q49: =施設利用申込書!F44 ->  | W49: =施設利用申込書!I44 -> 0 | AK49: =BI49 ->  | AS49: 円 | BC49: 円 | BE49: =BI49*0.5 ->  | BI49: =IFERROR(VLOOKUP(CI49,料金マスタ!$A$2:$B$145,2,),"") ->  | BV49: =BY16 -> 0 | BW49: =BV49*560 -> 0 | BX49: =5690*BW49 -> 0 | BY49: =IFERROR(BI49/BW49*1.5,"") ->  | CE49: =_xlfn.SWITCH(BR49,"アマ",1,"入徴",2,"プロ",3,"") ->  | CF49: =_xlfn.SWITCH(BS49,"平日",1,"休日",2,"") ->  | CG49: =_xlfn.SWITCH(BT49,"50ｍ",1,"25ｍ夏",2,"25ｍ冬",3,"スケ",4,"") ->  | CH49: =_xlfn.SWITCH(BU49,"A",1,"B",2,"C",3,"D",4,"E",5,"F",6,"") ->  | CW49: 夏 | CX49: 25ｍ夏 | CY49: 2 | CZ49: 102530 | DA49: 102530 | DB49: 126460 | DC49: 205070 | DD49: 228990 | DE49: 331530 | DH49: 3121 | DI49: 3122 | DJ49: 3123 | DK49: 3124 | DL49: 3125 | DM49: 3126
L50: =施設利用申込書!R41 -> 00:00:00 | O50: ～ | P50: =施設利用申込書!X41 -> 00:00:00 | AS50: 円 | BE50: =BI49*0.2 ->  | CW50: 冬 | CX50: 25ｍ冬 | CY50: 3 | CZ50: 153800 | DA50: 153800 | DB50: 191400 | DC50: 307600 | DD50: 345200 | DE50: 499000 | DH50: 3131 | DI50: 3132 | DJ50: 3133 | DK50: 3134 | DL50: 3135 | DM50: 3136
J51: =施設利用申込書!A42 -> 00:00:00 | Q51: =施設利用申込書!F46 -> 00:00:00 | W51: =施設利用申込書!I46 -> 0 | AK51: =BI51 ->  | AS51: 円 | BC51: 円 | BE51: =BI51*0.5 ->  | BI51: =IFERROR(VLOOKUP(CI51,料金マスタ!$A$2:$B$145,2,),"") ->  | BV51: =BY17 -> 0 | BW51: =BV51*560 -> 0 | BX51: =5690*BW51 -> 0 | BY51: =IFERROR(BI51/BW51*1.5,"") ->  | CE51: =_xlfn.SWITCH(BR51,"アマ",1,"入徴",2,"プロ",3,"") ->  | CF51: =_xlfn.SWITCH(BS51,"平日",1,"休日",2,"") ->  | CG51: =_xlfn.SWITCH(BT51,"50ｍ",1,"25ｍ夏",2,"25ｍ冬",3,"スケ",4,"") ->  | CH51: =_xlfn.SWITCH(BU51,"A",1,"B",2,"C",3,"D",4,"E",5,"F",6,"") ->  | CW51: 夏 | CX51: 25ｍ夏 | CY51: 2 | CZ51: 102530 | DA51: 102530 | DB51: 126460 | DC51: 205070 | DD51: 228990 | DE51: 331530 | DH51: 3121 | DI51: 3122 | DJ51: 3123 | DK51: 3124 | DL51: 3125 | DM51: 3126
L52: =施設利用申込書!R42 -> 00:00:00 | O52: ～ | P52: =施設利用申込書!X42 -> 00:00:00 | AS52: 円 | BE52: =BI51*0.2 ->  | CW52: 冬 | CX52: 25ｍ冬 | CY52: 3 | CZ52: 153800 | DA52: 153800 | DB52: 191400 | DC52: 307600 | DD52: 345200 | DE52: 499000 | DH52: 3131 | DI52: 3132 | DJ52: 3133 | DK52: 3134 | DL52: 3135 | DM52: 3136
J53: =施設利用申込書!A43 -> 00:00:00 | Q53: =施設利用申込書!F48 -> 00:00:00 | W53: =施設利用申込書!I48 -> 0 | AK53: =BI53 ->  | AS53: 円 | BC53: 円 | BE53: =BI53*0.5 ->  | BI53: =IFERROR(VLOOKUP(CI53,料金マスタ!$A$2:$B$145,2,),"") ->  | BV53: =BY18 -> 0 | BW53: =BV53*560 -> 0 | BX53: =5690*BW53 -> 0 | BY53: =IFERROR(BI53/BW53*1.5,"") ->  | CE53: =_xlfn.SWITCH(BR53,"アマ",1,"入徴",2,"プロ",3,"") ->  | CF53: =_xlfn.SWITCH(BS53,"平日",1,"休日",2,"") ->  | CG53: =_xlfn.SWITCH(BT53,"50ｍ",1,"25ｍ夏",2,"25ｍ冬",3,"スケ",4,"") ->  | CH53: =_xlfn.SWITCH(BU53,"A",1,"B",2,"C",3,"D",4,"E",5,"F",6,"") ->  | CW53: 夏 | CX53: 25ｍ夏 | CY53: 2 | CZ53: 102530 | DA53: 102530 | DB53: 126460 | DC53: 205070 | DD53: 228990 | DE53: 331530 | DH53: 3121 | DI53: 3122 | DJ53: 3123 | DK53: 3124 | DL53: 3125 | DM53: 3126
L54: =施設利用申込書!R43 -> 00:00:00 | O54: ～ | P54: =施設利用申込書!X43 -> 00:00:00 | AS54: 円 | BE54: =BI53*0.2 ->  | CW54: 冬 | CX54: 25ｍ冬 | CY54: 3 | CZ54: 153800 | DA54: 153800 | DB54: 191400 | DC54: 307600 | DD54: 345200 | DE54: 499000 | DH54: 3131 | DI54: 3132 | DJ54: 3133 | DK54: 3134 | DL54: 3135 | DM54: 3136
J55: =施設利用申込書!A44 -> 00:00:00 | Q55: =施設利用申込書!F50 -> 00:00:00 | W55: =施設利用申込書!I50 -> 0 | AK55: =BI55 ->  | AS55: 円 | BC55: 円 | BE55: =BI55*0.5 ->  | BI55: =IFERROR(VLOOKUP(CI55,料金マスタ!$A$2:$B$145,2,),"") ->  | BV55: =BY19 -> 0 | BW55: =BV55*560 -> 0 | BX55: =5690*BW55 -> 0 | BY55: =IFERROR(BI55/BW55*1.5,"") ->  | CE55: =_xlfn.SWITCH(BR55,"アマ",1,"入徴",2,"プロ",3,"") ->  | CF55: =_xlfn.SWITCH(BS55,"平日",1,"休日",2,"") ->  | CG55: =_xlfn.SWITCH(BT55,"50ｍ",1,"25ｍ夏",2,"25ｍ冬",3,"スケ",4,"") ->  | CH55: =_xlfn.SWITCH(BU55,"A",1,"B",2,"C",3,"D",4,"E",5,"F",6,"") ->  | CW55: 夏 | CX55: 25ｍ夏 | CY55: 2 | CZ55: 102530 | DA55: 102530 | DB55: 126460 | DC55: 205070 | DD55: 228990 | DE55: 331530 | DH55: 3121 | DI55: 3122 | DJ55: 3123 | DK55: 3124 | DL55: 3125 | DM55: 3126
L56: =施設利用申込書!R44 -> 00:00:00 | O56: ～ | P56: =施設利用申込書!X44 -> 00:00:00 | AS56: 円 | BE56: =BI55*0.2 ->  | CW56: 冬 | CX56: 25ｍ冬 | CY56: 3 | CZ56: 153800 | DA56: 153800 | DB56: 191400 | DC56: 307600 | DD56: 345200 | DE56: 499000 | DH56: 3131 | DI56: 3132 | DJ56: 3133 | DK56: 3134 | DL56: 3135 | DM56: 3136
J57: 施 設 使 用 料 計 | Q57: 0 | AA57: 円 | AD57: 付属設備料使用料 | AR57: 0 | BB57: 円 | CX57: スケ | CY57: 4 | CZ57: 396470 | DA57: 396470 | DB57: 499000 | DC57: 792940 | DD57: 895480 | DE57: 1291950 | DH57: 3141 | DI57: 3142 | DJ57: 3143 | DK57: 3144 | DL57: 3145 | DM57: 3146
J58: 早 朝 時 間 外 | Q58: 0 | AA58: 円 | AD58: 冷 暖 房 料 | AR58: 0 | BB58: 円 | CV58: 休日 | CX58: 50ｍ | CY58: 5 | CZ58: =CZ42*1.2 -> 360924 | DA58: 360924 | DB58: 1171152 | DC58: 721848 | DD58: 812076 | DE58: 1173000 | DG58: 休日 | DH58: 3211 | DI58: 3212 | DJ58: 3213 | DK58: 3214 | DL58: 3215 | DM58: 3216
J59: 使用料減免額計 | Q59: 0 | AA59: 円 | AD59: 合 計 | AR59: =SUM(Q57+Q58+AR57-Q59) -> 0 | BB59: 円 | CX59: 25ｍ夏 | CY59: 6 | CZ59: 123036 | DA59: 123036 | DB59: 151752 | DC59: 246084 | DD59: 274788 | DE59: 397836 | DH59: 3221 | DI59: 3222 | DJ59: 3223 | DK59: 3224 | DL59: 3225 | DM59: 3226
CX60: 25ｍ冬 | CY60: 7 | CZ60: 184560 | DA60: 184560 | DB60: 229680 | DC60: 369120 | DD60: 414240 | DE60: 598800 | DH60: 3231 | DI60: 3232 | DJ60: 3233 | DK60: 3234 | DL60: 3235 | DM60: 3236
J61: 備 考 | BR61: アマ | BS61: 平日 | CX61: スケ | CY61: 8 | CZ61: =CZ57*1.2 -> 475764 | DA61: =DA57*1.2 -> 475764 | DB61: 598800 | DC61: 951528 | DD61: 1074576 | DE61: 1550340 | DH61: 3241 | DI61: 3242 | DJ61: 3243 | DK61: 3244 | DL61: 3245 | DM61: 3246
BR62: 入徴 | BS62: 休日
BR63: プロ
AK65: 使用料受領印
BX67: A～C | BY67: D～F
BW68: アマ | BX68: 5690 | BY68: 6828
BX69: 17080 | BY69: 20496
BX70: 34170 | BY70: 41004

Sheet 料金マスタ (hidden)
A2: 1111 | B2: =料金マスタ2!CS26 -> 50120
A3: 1121 | B3: =料金マスタ2!CS27 -> 34170
A4: 1131 | B4: =料金マスタ2!CS28 -> 51260
A5: 1141 | B5: =料金マスタ2!CS29 -> 66070
A6: 1211 | B6: =料金マスタ2!CS30 -> 60144
A7: 1221 | B7: =料金マスタ2!CS31 -> 41004
A8: 1231 | B8: =料金マスタ2!CS32 -> 61512
A9: 1241 | B9: =料金マスタ2!CS33 -> 79284
A10: 1112 | B10: =料金マスタ2!CT26 -> 50120
A11: 1122 | B11: =料金マスタ2!CT27 -> 34170
A12: 1132 | B12: =料金マスタ2!CT28 -> 51260
A13: 1142 | B13: =料金マスタ2!CT29 -> 66070
A14: 1212 | B14: =料金マスタ2!CT30 -> 60144
A15: 1222 | B15: =料金マスタ2!CT31 -> 41004
A16: 1232 | B16: =料金マスタ2!CT32 -> 61512
A17: 1242 | B17: =料金マスタ2!CT33 -> 79284
A18: 1113 | B18: =料金マスタ2!CU26 -> 62650
A19: 1123 | B19: =料金マスタ2!CU27 -> 42150
A20: 1133 | B20: =料金マスタ2!CU28 -> 63790
A21: 1143 | B21: =料金マスタ2!CU29 -> 83160
A22: 1213 | B22: =料金マスタ2!CU30 -> 75180
A23: 1223 | B23: =料金マスタ2!CU31 -> 50580
A24: 1233 | B24: =料金マスタ2!CU32 -> 76548
A25: 1243 | B25: =料金マスタ2!CU33 -> 99792
A26: 1114 | B26: =料金マスタ2!CV26 -> 100250
A27: 1124 | B27: =料金マスタ2!CV27 -> 68350
A28: 1134 | B28: =料金マスタ2!CV28 -> 102530
A29: 1144 | B29: =料金マスタ2!CV29 -> 132150
A30: 1214 | B30: =料金マスタ2!CV30 -> 120300
A31: 1224 | B31: =料金マスタ2!CV31 -> 82020
A32: 1234 | B32: =料金マスタ2!CV32 -> 123036
A33: 1244 | B33: =料金マスタ2!CV33 -> 158580
A34: 1115 | B34: =料金マスタ2!CW26 -> 112780
A35: 1125 | B35: =料金マスタ2!CW27 -> 76330
A36: 1135 | B36: =料金マスタ2!CW28 -> 115060
A37: 1145 | B37: =料金マスタ2!CW29 -> 149240
A38: 1215 | B38: =料金マスタ2!CW30 -> 135336
A39: 1225 | B39: =料金マスタ2!CW31 -> 91596
A40: 1235 | B40: =料金マスタ2!CW32 -> 138072
A41: 1245 | B41: =料金マスタ2!CW33 -> 179088
A42: 1116 | B42: =料金マスタ2!CX26 -> 162910
A43: 1126 | B43: =料金マスタ2!CX27 -> 110510
A44: 1136 | B44: =料金マスタ2!CX28 -> 166330
A45: 1146 | B45: =料金マスタ2!CX29 -> 215320
A46: 1216 | B46: =料金マスタ2!CX30 -> 195492
A47: 1226 | B47: =料金マスタ2!CX31 -> 132612
A48: 1236 | B48: =料金マスタ2!CX32 -> 199596
A49: 1246 | B49: =料金マスタ2!CX33 -> 258384
A50: 2111 | B50: =料金マスタ2!CS34 -> 150380
A51: 2121 | B51: =料金マスタ2!CS35 -> 102530
A52: 2131 | B52: =料金マスタ2!CS36 -> 153800
A53: 2141 | B53: =料金マスタ2!CS37 -> 198230
A54: 2211 | B54: =料金マスタ2!CS38 -> 180456
A55: 2221 | B55: =料金マスタ2!CS39 -> 123036
A56: 2231 | B56: =料金マスタ2!CS40 -> 184560
A57: 2241 | B57: =料金マスタ2!CS41 -> 237876
A58: 2112 | B58: =料金マスタ2!CT34 -> 150380
A59: 2122 | B59: =料金マスタ2!CT35 -> 102530
A60: 2132 | B60: =料金マスタ2!CT36 -> 153800
A61: 2142 | B61: =料金マスタ2!CT37 -> 198230
A62: 2212 | B62: =料金マスタ2!CT38 -> 180456
A63: 2222 | B63: =料金マスタ2!CT39 -> 123036
A64: 2232 | B64: =料金マスタ2!CT40 -> 184560
A65: 2242 | B65: =料金マスタ2!CT41 -> 237876
A66: 2113 | B66: =料金マスタ2!CU34 -> 187980
A67: 2123 | B67: =料金マスタ2!CU35 -> 126460
A68: 2133 | B68: =料金マスタ2!CU36 -> 191400
A69: 2143 | B69: =料金マスタ2!CU37 -> 249500
A70: 2213 | B70: =料金マスタ2!CU38 -> 225576
A71: 2223 | B71: =料金マスタ2!CU39 -> 151752
A72: 2233 | B72: =料金マスタ2!CU40 -> 229680
A73: 2243 | B73: =料金マスタ2!CU41 -> 299400
A74: 2114 | B74: =料金マスタ2!CV34 -> 300770
A75: 2124 | B75: =料金マスタ2!CV35 -> 205070
A76: 2134 | B76: =料金マスタ2!CV36 -> 307600
A77: 2144 | B77: =料金マスタ2!CV37 -> 396470
A78: 2214 | B78: =料金マスタ2!CV38 -> 360924
A79: 2224 | B79: =料金マスタ2!CV39 -> 246084
A80: 2234 | B80: =料金マスタ2!CV40 -> 369120
A81: 2244 | B81: =料金マスタ2!CV41 -> 475764
A82: 2115 | B82: =料金マスタ2!CW34 -> 338360
A83: 2125 | B83: =料金マスタ2!CW35 -> 228990
A84: 2135 | B84: =料金マスタ2!CW36 -> 345200
A85: 2145 | B85: =料金マスタ2!CW37 -> 447740
A86: 2215 | B86: =料金マスタ2!CW38 -> 406032
A87: 2225 | B87: =料金マスタ2!CW39 -> 274788
A88: 2235 | B88: =料金マスタ2!CW40 -> 414240
A89: 2245 | B89: =料金マスタ2!CW41 -> 537288
A90: 2116 | B90: =料金マスタ2!CX34 -> 488750
A91: 2126 | B91: =料金マスタ2!CX35 -> 331530
A92: 2136 | B92: =料金マスタ2!CX36 -> 499000
A93: 2146 | B93: =料金マスタ2!CX37 -> 645970
A94: 2216 | B94: =料金マスタ2!CX38 -> 586500
A95: 2226 | B95: =料金マスタ2!CX39 -> 397836
A96: 2236 | B96: =料金マスタ2!CX40 -> 598800
A97: 2246 | B97: =料金マスタ2!CX41 -> 775164
A98: 3111 | B98: =料金マスタ2!CS42 -> 300770
A99: 3121 | B99: =料金マスタ2!CS43 -> 102530
A100: 3131 | B100: =料金マスタ2!CS44 -> 153800
A101: 3141 | B101: =料金マスタ2!CS45 -> 396470
A102: 3211 | B102: =料金マスタ2!CS46 -> 360924
A103: 3221 | B103: =料金マスタ2!CS47 -> 123036
A104: 3231 | B104: =料金マスタ2!CS48 -> 184560
A105: 3241 | B105: =料金マスタ2!CS49 -> 475764
A106: 3112 | B106: =料金マスタ2!CT42 -> 300770
A107: 3122 | B107: =料金マスタ2!CT43 -> 102530
A108: 3132 | B108: =料金マスタ2!CT44 -> 153800
A109: 3142 | B109: =料金マスタ2!CT45 -> 396470
A110: 3212 | B110: =料金マスタ2!CT46 -> 360924
A111: 3222 | B111: =料金マスタ2!CT47 -> 123036
A112: 3232 | B112: =料金マスタ2!CT48 -> 184560
A113: 3242 | B113: =料金マスタ2!CT49 -> 475764
A114: 3113 | B114: =料金マスタ2!CU42 -> 975960
A115: 3123 | B115: =料金マスタ2!CU43 -> 126460
A116: 3133 | B116: =料金マスタ2!CU44 -> 191400
A117: 3143 | B117: =料金マスタ2!CU45 -> 499000
A118: 3213 | B118: =料金マスタ2!CU46 -> 1171152
A119: 3223 | B119: =料金マスタ2!CU47 -> 151752
A120: 3233 | B120: =料金マスタ2!CU48 -> 229680
A121: 3243 | B121: =料金マスタ2!CU49 -> 598800
A122: 3114 | B122: =料金マスタ2!CV42 -> 601540
A123: 3124 | B123: =料金マスタ2!CV43 -> 205070
A124: 3134 | B124: =料金マスタ2!CV44 -> 307600
A125: 3144 | B125: =料金マスタ2!CV45 -> 792940
A126: 3214 | B126: =料金マスタ2!CV46 -> 721848
A127: 3224 | B127: =料金マスタ2!CV47 -> 246084
A128: 3234 | B128: =料金マスタ2!CV48 -> 369120
A129: 3244 | B129: =料金マスタ2!CV49 -> 951528
A130: 3115 | B130: =料金マスタ2!CW42 -> 676730
A131: 3125 | B131: =料金マスタ2!CW43 -> 228990
A132: 3135 | B132: =料金マスタ2!CW44 -> 345200
A133: 3145 | B133: =料金マスタ2!CW45 -> 895480
A134: 3215 | B134: =料金マスタ2!CW46 -> 812076
A135: 3225 | B135: =料金マスタ2!CW47 -> 274788
A136: 3235 | B136: =料金マスタ2!CW48 -> 414240
A137: 3245 | B137: =料金マスタ2!CW49 -> 1074576
A138: 3116 | B138: =料金マスタ2!CX42 -> 977500
A139: 3126 | B139: =料金マスタ2!CX43 -> 331530
A140: 3136 | B140: =料金マスタ2!CX44 -> 499000
A141: 3146 | B141: =料金マスタ2!CX45 -> 1291950
A142: 3216 | B142: =料金マスタ2!CX46 -> 1173000
A143: 3226 | B143: =料金マスタ2!CX47 -> 397836
A144: 3236 | B144: =料金マスタ2!CX48 -> 598800
A145: 3246 | B145: =料金マスタ2!CX49 -> 1550340

Sheet 領収書(原紙) (hidden)
I3: 施 設 利 用 申 込 書
I4: 施 設 利 用 料 減 免 承 認 申 請 書
K5: 施 設 利 用 料 等 領 収 書
AU6: =TODAY() -> 2023-08-20
J7: 福岡県立総合プール 所長 殿
J8: 利用者
Q9: 所在地） | V9: 〒 | X9: =施設利用申込書!L24&-施設利用申込書!P24 -> 0 | BT9: 福岡県立体育・スポーツ施設使用料条例施行規則
V10: =施設利用申込書!L25 -> 0 | BH10: 減免番号
BH11: 無 | BQ11: 有
Q12: 名 称 ） | V12: =施設利用申込書!I11 -> 0 | BQ12: 無
Q14: 電 話 ） | V14: =施設利用申込書!BK18 -> 00 | BI14: 第五条第１項第一号 | CA14: 第五条第１項第六号 | CS14: 第五条第１項第十一号 | DJ14: 第五条第１項第十三号
J16: 主催者名 | Q16: =施設利用申込書!I22 -> 0 | BI16: 第五条第１項第二号 | CA16: 第五条第１項第七号 | CS16: 第五条第１項第十二号 | DJ16: 第五条第１項第十四号
J17: 後援者名 | Q17: =施設利用申込書!I23 -> 0
J18: 代表職氏名 | BI18: 第五条第１項第三号 | CA18: 第五条第１項第八号
J19: 責任者名 | Q19: =施設利用申込書!I14 -> 0 | CS19: 平成 24年 ４月 13日（木） | DJ19: 25メートルプール
J20: 利用目的 | Q20: =施設利用申込書!I18 -> 0 | BI20: 第五条第１項第四号 | CA20: 第五条第１項第九号 | CS20: 14：00 ～17：00
J21: 利用人員 | Q21: =施設利用申込書!G19+施設利用申込書!U19 -> 0 | Y21: 人 | AA21: 区分 | AG21: =施設利用申込書!BU20 ->  | AK21: ( | AL21: =施設利用申込書!I20 -> 0 | AO21: ) | AP21: 金額 | AU21: =施設利用申込書!N20 -> 0 | BC21: 円
J22: 減免 | Q22: 無 | S22: =_xlfn.SWITCH(Q22,"有","福岡県立体育・スポーツ施設使用料条例施行規則","無","") ->  | AP22: =_xlfn.SWITCH(BH11,"無","",1,"第五条第1項第一号",2,"第五条第1項第二号",3,"第五条第1項第三号",4,"第五条第1項第四号",5,"第五条第1項第五号") ->  | BI22: 第五条第１項第五号 | CA22: 第五条第１項第十号 | DJ22: 50メートルプール
CC23: A | CD23: B | CE23: C | CF23: D | CG23: E | CH23: F
J24: 利用日時 | W24: 利用施設 | AK24: 使用料減免額 | AU24: 減免後使用料 | BI24: 減免前金額 | BR24: 区分 | BS24: 施設 | BT24: 時間 | BU24: 平祝 | CC24: 9-13 | CD24: 13-17 | CE24: 17-21 | CF24: 9-17 | CG24: 13-21 | CH24: 9-21
J25: =施設利用申込書!A29 -> 00:00:00 | Q25: =施設利用申込書!F29 ->  | W25: =施設利用申込書!I29 -> 0 | AS25: 円 | BC25: 円 | BP25: 始 | BQ25: =L26 -> 00:00:00 | BR25: アマ | BS25: 25ｍ冬 | BT25: A | BU25: 休日 | BX25: 平日 | CA25: 50ｍ | CB25: 1 | CC25: 50120 | CD25: 50120 | CE25: 62650 | CF25: 100250 | CG25: 112780 | CH25: 162910 | DK25: 飛込みプール
L26: =施設利用申込書!R29 -> 00:00:00 | O26: ～ | P26: =施設利用申込書!X29 -> 00:00:00 | AS26: 円 | BP26: 終 | BQ26: =P26 -> 00:00:00 | BZ26: 夏 | CA26: 25ｍ夏 | CB26: 2 | CC26: 34170 | CD26: 34170 | CE26: 42150 | CF26: 68350 | CG26: 76330 | CH26: 110510
J27: =施設利用申込書!A30 -> 00:00:00 | Q27: =施設利用申込書!F31 ->  | W27: =施設利用申込書!I30 -> 0 | AS27: 円 | BC27: 円 | BZ27: 冬 | CA27: 25ｍ冬 | CB27: 3 | CC27: 51260 | CD27: 51260 | CE27: 63790 | CF27: 102530 | CG27: 115060 | CH27: 166330
L28: =施設利用申込書!R30 -> 00:00:00 | O28: ～ | P28: =施設利用申込書!X30 -> 00:00:00 | AS28: 円 | CA28: スケ | CB28: 4 | CC28: 66070 | CD28: 66070 | CE28: 83160 | CF28: 132150 | CG28: 149240 | CH28: 215320 | DK28: スケートリンク
J29: =施設利用申込書!A31 -> 00:00:00 | Q29: =施設利用申込書!F31 ->  | W29: =施設利用申込書!I31 -> 0 | AS29: 円 | BC29: 円 | BX29: 休日 | CA29: 50ｍ | CB29: 5 | CC29: =CC25*1.2 -> 60144 | CD29: =CD25*1.2 -> 60144 | CE29: 75180 | CF29: 120300 | CG29: 135336 | CH29: 195492
L30: =施設利用申込書!R31 -> 00:00:00 | O30: ～ | P30: =施設利用申込書!X31 -> 00:00:00 | AS30: 円 | CA30: 25ｍ夏 | CB30: 6 | CC30: =CC26*1.2 -> 41004 | CD30: 41004 | CE30: 50580 | CF30: 82020 | CG30: 91596 | CH30: 132612
J31: =施設利用申込書!A32 -> 00:00:00 | Q31: =施設利用申込書!F32 ->  | W31: =施設利用申込書!I32 -> 0 | AS31: 円 | BC31: 円 | CA31: 25ｍ冬 | CB31: 7 | CC31: =CC27*1.2 -> 61512 | CD31: 61512 | CE31: 76548 | CF31: 123036 | CG31: 138072 | CH31: 199596
L32: =施設利用申込書!R32 -> 00:00:00 | O32: ～ | P32: =施設利用申込書!X32 -> 00:00:00 | AS32: 円 | CA32: スケ | CB32: 8 | CC32: =CC28*1.2 -> 79284 | CD32: =CD28*1.2 -> 79284 | CE32: 99792 | CF32: 158580 | CG32: 179088 | CH32: 258384
J33: =施設利用申込書!A33 -> 00:00:00 | Q33: =施設利用申込書!F33 ->  | W33: =施設利用申込書!I33 -> 0 | AS33: 円 | BC33: 円
L34: =施設利用申込書!R33 -> 00:00:00 | O34: ～ | P34: =施設利用申込書!X33 -> 00:00:00 | AS34: 円
J35: =施設利用申込書!A34 -> 00:00:00 | Q35: =施設利用申込書!F34 ->  | W35: =施設利用申込書!I34 -> 0 | AS35: 円 | BC35: 円
L36: =施設利用申込書!R34 -> 00:00:00 | O36: ～ | P36: =施設利用申込書!X34 -> 00:00:00 | AS36: 円
J37: =施設利用申込書!A35 -> 00:00:00 | Q37: =施設利用申込書!F35 ->  | W37: =施設利用申込書!I35 -> 0 | AS37: 円 | BC37: 円
L38: =施設利用申込書!R35 -> 00:00:00 | O38: ～ | P38: =施設利用申込書!X35 -> 00:00:00 | AS38: 円
J39: =施設利用申込書!A36 -> 00:00:00 | Q39: =施設利用申込書!F36 ->  | W39: =施設利用申込書!I36 -> 0 | AS39: 円 | BC39: 円
L40: =施設利用申込書!R36 -> 00:00:00 | O40: ～ | P40: =施設利用申込書!X36 -> 00:00:00 | AS40: 円
J41: =施設利用申込書!A37 -> 00:00:00 | Q41: =施設利用申込書!F37 ->  | W41: =施設利用申込書!I37 -> 0 | AS41: 円 | BC41: 円
L42: =施設利用申込書!R37 -> 00:00:00 | O42: ～ | P42: =施設利用申込書!X37 -> 00:00:00 | AS42: 円
J43: =施設利用申込書!A38 -> 00:00:00 | Q43: =施設利用申込書!F38 ->  | W43: =施設利用申込書!I38 -> 0 | AS43: 円 | BC43: 円
L44: =施設利用申込書!R38 -> 00:00:00 | O44: ～ | P44: =施設利用申込書!X38 -> 00:00:00 | AS44: 円
J45: 施 設 使 用 料 計 | Q45: 0 | AA45: 円 | AD45: 付属設備料使用料 | AR45: 0 | BB45: 円
J46: 早 朝 時 間 外 | Q46: 0 | AA46: 円 | AD46: 冷 暖 房 料 | AR46: 0 | BB46: 円
J47: 使用料減免額計 | Q47: 0 | AA47: 円 | AD47: 合 計 | AR47: =SUM(Q45+Q46+AR45-Q47) -> 0 | BB47: 円
J49: 備 考
AK53: 使用料受領印

Sheet 料金マスタ2 (hidden)
I3: 施 設 利 用 申 込 書
I4: 施 設 利 用 料 減 免 承 認 申 請 書
K5: 施 設 利 用 料 等 領 収 書
AU6: =TODAY() -> 2023-08-20
J7: 福岡県立総合プール 所長 殿
J8: 利用者
Q9: 所在地） | V9: 〒 | X9: =施設利用申込書!L24&-施設利用申込書!P24 -> 0
V10: =施設利用申込書!L25 -> 0 | BH10: 減免番号
BH11: 1 | BQ11: 有
Q12: 名 称 ） | V12: =施設利用申込書!I11 -> 0 | BQ12: 無
Q14: 電 話 ） | V14: =施設利用申込書!BK18 -> 00
J16: 主催者名 | Q16: =施設利用申込書!I22 -> 0
J17: 後援者名 | Q17: =施設利用申込書!I23 -> 0
J18: 代表職氏名
J19: 責任者名 | Q19: =施設利用申込書!I14 -> 0
J20: 利用目的 | Q20: =施設利用申込書!I18 -> 0
J21: 利用人員 | Q21: =施設利用申込書!G19+施設利用申込書!U19 -> 0 | Y21: 人 | AA21: 区分 | AG21: =施設利用申込書!BU20 ->  | AK21: ( | AL21: =施設利用申込書!I20 -> 0 | AO21: ) | AP21: 金額 | AU21: =施設利用申込書!N20 -> 0 | BC21: 円
J22: 減免 | Q22: 有 | S22: =_xlfn.SWITCH(Q22,"有","福岡県立体育・スポーツ施設使用料条例施行規則","無","") -> 福岡県立体育・スポーツ施設使用料条例施行規則 | AP22: =_xlfn.SWITCH(BH11,"無","",1,"第五条第1項第一号",2,"第五条第1項第二号",3,"第五条第1項第三号",4,"第五条第1項第四号",5,"第五条第1項第五号") -> 第五条第1項第一号
J24: 利用日時 | W24: 利用施設 | AK24: 使用料減免額 | AU24: 減免後使用料 | BI24: 減免前金額 | BR24: 区分 | BS24: 平祝 | BT24: 施設 | BU24: 時間 | BX24: 区分 | BY24: 平祝 | BZ24: 施設 | CA24: 時間 | CB24: コード | CD24: 折り返し値 | CN24: 料金表 | CS24: A | CT24: B | CU24: C | CV24: D | CW24: E | CX24: F | CY24: コード表 | DA24: A | DB24: B | DC24: C | DD24: D | DE24: E | DF24: F
J25: =施設利用申込書!A29 -> 00:00:00 | Q25: =施設利用申込書!F29 ->  | W25: =施設利用申込書!I29 -> 0 | AS25: 円 | BC25: 円 | BI25: =VLOOKUP(CF25,料金マスタ!$A$2:$B$145,2,FALSE) -> 166330 | BP25: 始 | BQ25: =L26 -> 00:00:00 | BR25: アマ | BS25: 平日 | BT25: 25ｍ冬 | BU25: F | BX25: =_xlfn.SWITCH(BR25,"アマ",1,"入徴",2,"プロ",3,"") -> 1 | BY25: =_xlfn.SWITCH(BS25,"平日",1,"休日",2,"") -> 1 | BZ25: =_xlfn.SWITCH(BT25,"50ｍ",1,"25ｍ夏",2,"25ｍ冬",3,"スケ",4,"") -> 3 | CA25: =_xlfn.SWITCH(BU25,"A",1,"B",2,"C",3,"D",4,"E",5,"F",6,"") -> 6 | CB25: =BX25&BY25&BZ25&CA25 -> 1136 | CD25: 1111 | CF25: 1136 | CS25: 9-13 | CT25: 13-17 | CU25: 17-21 | CV25: 9-17 | CW25: 13-21 | CX25: 9-21 | DA25: 9-13 | DB25: 13-17 | DC25: 17-21 | DD25: 9-17 | DE25: 13-21 | DF25: 9-21
L26: =施設利用申込書!R29 -> 00:00:00 | O26: ～ | P26: =施設利用申込書!X29 -> 00:00:00 | W26: =IF($Q$22="有","減免あり",IF($Q$22="無","減免なし",IF($Q$22="",""))) -> 減免あり | AB26: =IF(Q25="(土)","土日祝料金 1.2割増",IF(Q25="(日)","土日祝料金 1.2割増",IF(Q25="(月)","平日料金",IF(Q25="(火)","平日料金",IF(Q25="(水)","平日料金",IF(Q25="(木)","平日料金",IF(Q25="(金)","平日料金",IF(Q25="","")))))))) ->  | AS26: 円 | BP26: 終 | BQ26: =P26 -> 00:00:00 | CN26: アマ | CO26: 平日 | CQ26: 50ｍ | CR26: 1 | CS26: 50120 | CT26: 50120 | CU26: 62650 | CV26: 100250 | CW26: 112780 | CX26: 162910 | CY26: アマ | CZ26: 平日 | DA26: 1111 | DB26: 1112 | DC26: 1113 | DD26: 1114 | DE26: 1115 | DF26: 1116
J27: =施設利用申込書!A30 -> 00:00:00 | Q27: =施設利用申込書!F31 ->  | W27: =施設利用申込書!I30 -> 0 | AS27: 円 | BC27: 円 | BI27: =VLOOKUP(CF27,料金マスタ!$A$2:$B$145,2,FALSE) -> 205070 | BR27: 入徴 | BS27: 平日 | BT27: 25ｍ夏 | BU27: D | BX27: =_xlfn.SWITCH(BR27,"アマ",1,"入徴",2,"プロ",3,"") -> 2 | BY27: =_xlfn.SWITCH(BS27,"平日",1,"休日",2,"") -> 1 | BZ27: =_xlfn.SWITCH(BT27,"50ｍ",1,"25ｍ夏",2,"25ｍ冬",3,"スケ",4,"") -> 2 | CA27: =_xlfn.SWITCH(BU27,"A",1,"B",2,"C",3,"D",4,"E",5,"F",6,"") -> 4 | CB27: =BX27&BY27&BZ27&CA27 -> 2124 | CD27: 1121 | CF27: 2124 | CP27: 夏 | CQ27: 25ｍ夏 | CR27: 2 | CS27: 34170 | CT27: 34170 | CU27: 42150 | CV27: 68350 | CW27: 76330 | CX27: 110510 | DA27: 1121 | DB27: 1122 | DC27: 1123 | DD27: 1124 | DE27: 1125 | DF27: 1126
L28: =施設利用申込書!R30 -> 00:00:00 | O28: ～ | P28: =施設利用申込書!X30 -> 00:00:00 | W28: =IF($Q$22="有","減免あり",IF($Q$22="無","減免なし",IF($Q$22="","",IF(J27="","")))) -> 減免あり | AB28: =IF(Q27="(土)","土日祝料金 1.2割増",IF(Q27="(日)","土日祝料金 1.2割増",IF(Q27="(月)","平日料金",IF(Q27="(火)","平日料金",IF(Q27="(水)","平日料金",IF(Q27="(木)","平日料金",IF(Q27="(金)","平日料金",IF(Q27="","")))))))) ->  | AS28: 円 | CP28: 冬 | CQ28: 25ｍ冬 | CR28: 3 | CS28: 51260 | CT28: 51260 | CU28: 63790 | CV28: 102530 | CW28: 115060 | CX28: 166330 | DA28: 1131 | DB28: 1132 | DC28: 1133 | DD28: 1134 | DE28: 1135 | DF28: 1136
J29: =施設利用申込書!A31 -> 00:00:00 | Q29: =施設利用申込書!F31 ->  | W29: =施設利用申込書!I31 -> 0 | AS29: 円 | BC29: 円 | BI29: =VLOOKUP(CF29,料金マスタ!$A$2:$B$145,2,FALSE) -> 61512 | BR29: アマ | BS29: 休日 | BT29: 25ｍ冬 | BU29: A | BX29: =_xlfn.SWITCH(BR29,"アマ",1,"入徴",2,"プロ",3,"") -> 1 | BY29: =_xlfn.SWITCH(BS29,"平日",1,"休日",2,"") -> 2 | BZ29: =_xlfn.SWITCH(BT29,"50ｍ",1,"25ｍ夏",2,"25ｍ冬",3,"スケ",4,"") -> 3 | CA29: =_xlfn.SWITCH(BU29,"A",1,"B",2,"C",3,"D",4,"E",5,"F",6,"") -> 1 | CB29: =BX29&BY29&BZ29&CA29 -> 1231 | CD29: 1211 | CF29: 1231 | CQ29: スケ | CR29: 4 | CS29: 66070 | CT29: 66070 | CU29: 83160 | CV29: 132150 | CW29: 149240 | CX29: 215320 | DA29: 1141 | DB29: 1142 | DC29: 1143 | DD29: 1144 | DE29: 1145 | DF29: 1146
L30: =施設利用申込書!R31 -> 00:00:00 | O30: ～ | P30: =施設利用申込書!X31 -> 00:00:00 | W30: =IF($Q$22="有","減免あり",IF($Q$22="無","減免なし",IF($Q$22="",""))) -> 減免あり | AB30: =IF(Q29="(土)","土日祝料金 1.2割増",IF(Q29="(日)","土日祝料金 1.2割増",IF(Q29="(月)","平日料金",IF(Q29="(火)","平日料金",IF(Q29="(水)","平日料金",IF(Q29="(木)","平日料金",IF(Q29="(金)","平日料金",IF(Q29="","")))))))) ->  | AS30: 円 | CO30: 休日 | CQ30: 50ｍ | CR30: 5 | CS30: =CS26*1.2 -> 60144 | CT30: =CT26*1.2 -> 60144 | CU30: 75180 | CV30: 120300 | CW30: 135336 | CX30: 195492 | CZ30: 休日 | DA30: 1211 | DB30: 1212 | DC30: 1213 | DD30: 1214 | DE30: 1215 | DF30: 1216
J31: =施設利用申込書!A32 -> 00:00:00 | Q31: =施設利用申込書!F32 ->  | W31: =施設利用申込書!I32 -> 0 | AS31: 円 | BC31: 円 | BI31: =VLOOKUP(CF31,料金マスタ!$A$2:$B$145,2,FALSE) -> 1171152 | BR31: プロ | BS31: 休日 | BT31: 50ｍ | BU31: C | BX31: =_xlfn.SWITCH(BR31,"アマ",1,"入徴",2,"プロ",3,"") -> 3 | BY31: =_xlfn.SWITCH(BS31,"平日",1,"休日",2,"") -> 2 | BZ31: =_xlfn.SWITCH(BT31,"50ｍ",1,"25ｍ夏",2,"25ｍ冬",3,"スケ",4,"") -> 1 | CA31: =_xlfn.SWITCH(BU31,"A",1,"B",2,"C",3,"D",4,"E",5,"F",6,"") -> 3 | CB31: =BX31&BY31&BZ31&CA31 -> 3213 | CD31: 1141 | CF31: 3213 | CQ31: 25ｍ夏 | CR31: 6 | CS31: =CS27*1.2 -> 41004 | CT31: 41004 | CU31: 50580 | CV31: 82020 | CW31: 91596 | CX31: 132612 | DA31: 1221 | DB31: 1222 | DC31: 1223 | DD31: 1224 | DE31: 1225 | DF31: 1226
L32: =施設利用申込書!R32 -> 00:00:00 | O32: ～ | P32: =施設利用申込書!X32 -> 00:00:00 | W32: =IF($Q$22="有","減免あり",IF($Q$22="無","減免なし",IF($Q$22="",""))) -> 減免あり | AB32: =IF(Q31="(土)","土日祝料金 1.2割増",IF(Q31="(日)","土日祝料金 1.2割増",IF(Q31="(月)","平日料金",IF(Q31="(火)","平日料金",IF(Q31="(水)","平日料金",IF(Q31="(木)","平日料金",IF(Q31="(金)","平日料金",IF(Q31="","")))))))) ->  | AS32: 円 | CQ32: 25ｍ冬 | CR32: 7 | CS32: 61512 | CT32: 61512 | CU32: 76548 | CV32: 123036 | CW32: 138072 | CX32: 199596 | DA32: 1231 | DB32: 1232 | DC32: 1233 | DD32: 1234 | DE32: 1235 | DF32: 1236
J33: =施設利用申込書!A33 -> 00:00:00 | Q33: =施設利用申込書!F33 ->  | W33: =施設利用申込書!I33 -> 0 | AS33: 円 | BC33: 円 | BI33: =VLOOKUP(CF33,料金マスタ!$A$2:$B$145,2,FALSE) -> 120300 | BR33: アマ | BS33: 休日 | BT33: 50ｍ | BU33: D | BX33: =_xlfn.SWITCH(BR33,"アマ",1,"入徴",2,"プロ",3,"") -> 1 | BY33: =_xlfn.SWITCH(BS33,"平日",1,"休日",2,"") -> 2 | BZ33: =_xlfn.SWITCH(BT33,"50ｍ",1,"25ｍ夏",2,"25ｍ冬",3,"スケ",4,"") -> 1 | CA33: =_xlfn.SWITCH(BU33,"A",1,"B",2,"C",3,"D",4,"E",5,"F",6,"") -> 4 | CB33: =BX33&BY33&BZ33&CA33 -> 1214 | CD33: 1114 | CF33: 1214 | CQ33: スケ | CR33: 8 | CS33: =CS29*1.2 -> 79284 | CT33: 79284 | CU33: 99792 | CV33: 158580 | CW33: 179088 | CX33: 258384 | DA33: 1241 | DB33: 1242 | DC33: 1243 | DD33: 1244 | DE33: 1245 | DF33: 1246
L34: =施設利用申込書!R33 -> 00:00:00 | O34: ～ | P34: =施設利用申込書!X33 -> 00:00:00 | W34: =IF($Q$22="有","減免あり",IF($Q$22="無","減免なし",IF($Q$22="",""))) -> 減免あり | AB34: =IF(Q33="(土)","土日祝料金 1.2割増",IF(Q33="(日)","土日祝料金 1.2割増",IF(Q33="(月)","平日料金",IF(Q33="(火)","平日料金",IF(Q33="(水)","平日料金",IF(Q33="(木)","平日料金",IF(Q33="(金)","平日料金",IF(Q33="","")))))))) ->  | AS34: 円 | CN34: 入徴 | CO34: 平日 | CQ34: 50ｍ | CR34: 1 | CS34: 150380 | CT34: 150380 | CU34: 187980 | CV34: 300770 | CW34: 338360 | CX34: 488750 | CY34: 入徴 | CZ34: 平日 | DA34: 2111 | DB34: 2112 | DC34: 2113 | DD34: 2114 | DE34: 2115 | DF34: 2116
J35: =施設利用申込書!A34 -> 00:00:00 | Q35: =施設利用申込書!F34 ->  | W35: =施設利用申込書!I34 -> 0 | AS35: 円 | BC35: 円 | BI35: =VLOOKUP(CF35,料金マスタ!$A$2:$B$145,2,FALSE) -> 102530 | BR35: プロ | BS35: 平日 | BT35: 25ｍ夏 | BU35: A | BX35: =_xlfn.SWITCH(BR35,"アマ",1,"入徴",2,"プロ",3,"") -> 3 | BY35: =_xlfn.SWITCH(BS35,"平日",1,"休日",2,"") -> 1 | BZ35: =_xlfn.SWITCH(BT35,"50ｍ",1,"25ｍ夏",2,"25ｍ冬",3,"スケ",4,"") -> 2 | CA35: =_xlfn.SWITCH(BU35,"A",1,"B",2,"C",3,"D",4,"E",5,"F",6,"") -> 1 | CB35: =BX35&BY35&BZ35&CA35 -> 3121 | CD35: 1121 | CF35: 3121 | CP35: 夏 | CQ35: 25ｍ夏 | CR35: 2 | CS35: 102530 | CT35: 102530 | CU35: 126460 | CV35: 205070 | CW35: 228990 | CX35: 331530 | DA35: 2121 | DB35: 2122 | DC35: 2123 | DD35: 2124 | DE35: 2125 | DF35: 2126
L36: =施設利用申込書!R34 -> 00:00:00 | O36: ～ | P36: =施設利用申込書!X34 -> 00:00:00 | W36: =IF($Q$22="有","減免あり",IF($Q$22="無","減免なし",IF($Q$22="",""))) -> 減免あり | AB36: =IF(Q35="(土)","土日祝料金 1.2割増",IF(Q35="(日)","土日祝料金 1.2割増",IF(Q35="(月)","平日料金",IF(Q35="(火)","平日料金",IF(Q35="(水)","平日料金",IF(Q35="(木)","平日料金",IF(Q35="(金)","平日料金",IF(Q35="","")))))))) ->  | AS36: 円 | CP36: 冬 | CQ36: 25ｍ冬 | CR36: 3 | CS36: 153800 | CT36: 153800 | CU36: 191400 | CV36: 307600 | CW36: 345200 | CX36: 499000 | DA36: 2131 | DB36: 2132 | DC36: 2133 | DD36: 2134 | DE36: 2135 | DF36: 2136
J37: =施設利用申込書!A35 -> 00:00:00 | Q37: =施設利用申込書!F35 ->  | W37: =施設利用申込書!I35 -> 0 | AS37: 円 | BC37: 円 | BI37: =VLOOKUP(CF37,料金マスタ!$A$2:$B$145,2,FALSE) -> 51260 | BR37: アマ | BS37: 平日 | BT37: 25ｍ冬 | BU37: A | BX37: =_xlfn.SWITCH(BR37,"アマ",1,"入徴",2,"プロ",3,"") -> 1 | BY37: =_xlfn.SWITCH(BS37,"平日",1,"休日",2,"") -> 1 | BZ37: =_xlfn.SWITCH(BT37,"50ｍ",1,"25ｍ夏",2,"25ｍ冬",3,"スケ",4,"") -> 3 | CA37: =_xlfn.SWITCH(BU37,"A",1,"B",2,"C",3,"D",4,"E",5,"F",6,"") -> 1 | CB37: =BX37&BY37&BZ37&CA37 -> 1131 | CD37: 1131 | CF37: 1131 | CQ37: スケ | CR37: 4 | CS37: 198230 | CT37: 198230 | CU37: 249500 | CV37: 396470 | CW37: 447740 | CX37: 645970 | DA37: 2141 | DB37: 2142 | DC37: 2143 | DD37: 2144 | DE37: 2145 | DF37: 2146
L38: =施設利用申込書!R35 -> 00:00:00 | O38: ～ | P38: =施設利用申込書!X35 -> 00:00:00 | W38: =IF($Q$22="有","減免あり",IF($Q$22="無","減免なし",IF($Q$22="",""))) -> 減免あり | AB38: =IF(Q37="(土)","土日祝料金 1.2割増",IF(Q37="(日)","土日祝料金 1.2割増",IF(Q37="(月)","平日料金",IF(Q37="(火)","平日料金",IF(Q37="(水)","平日料金",IF(Q37="(木)","平日料金",IF(Q37="(金)","平日料金",IF(Q37="","")))))))) ->  | AS38: 円 | CO38: 休日 | CQ38: 50ｍ | CR38: 5 | CS38: =CS34*1.2 -> 180456 | CT38: =CT34*1.2 -> 180456 | CU38: 225576 | CV38: 360924 | CW38: 406032 | CX38: 586500 | CZ38: 休日 | DA38: 2211 | DB38: 2212 | DC38: 2213 | DD38: 2214 | DE38: 2215 | DF38: 2216
J39: =施設利用申込書!A36 -> 00:00:00 | Q39: =施設利用申込書!F36 ->  | W39: =施設利用申込書!I36 -> 0 | AS39: 円 | BC39: 円 | BI39: =VLOOKUP(CF39,料金マスタ!$A$2:$B$145,2,FALSE) -> 1550340 | BR39: プロ | BS39: 休日 | BT39: スケ | BU39: F | BX39: =_xlfn.SWITCH(BR39,"アマ",1,"入徴",2,"プロ",3,"") -> 3 | BY39: =_xlfn.SWITCH(BS39,"平日",1,"休日",2,"") -> 2 | BZ39: =_xlfn.SWITCH(BT39,"50ｍ",1,"25ｍ夏",2,"25ｍ冬",3,"スケ",4,"") -> 4 | CA39: =_xlfn.SWITCH(BU39,"A",1,"B",2,"C",3,"D",4,"E",5,"F",6,"") -> 6 | CB39: =BX39&BY39&BZ39&CA39 -> 3246 | CD39: 1226 | CF39: 3246 | CQ39: 25ｍ夏 | CR39: 6 | CS39: =CS35*1.2 -> 123036 | CT39: 123036 | CU39: 151752 | CV39: 246084 | CW39: 274788 | CX39: 397836 | DA39: 2221 | DB39: 2222 | DC39: 2223 | DD39: 2224 | DE39: 2225 | DF39: 2226
L40: =施設利用申込書!R36 -> 00:00:00 | O40: ～ | P40: =施設利用申込書!X36 -> 00:00:00 | W40: =IF($Q$22="有","減免あり",IF($Q$22="無","減免なし",IF($Q$22="",""))) -> 減免あり | AB40: =IF(Q39="(土)","土日祝料金 1.2割増",IF(Q39="(日)","土日祝料金 1.2割増",IF(Q39="(月)","平日料金",IF(Q39="(火)","平日料金",IF(Q39="(水)","平日料金",IF(Q39="(木)","平日料金",IF(Q39="(金)","平日料金",IF(Q39="","")))))))) ->  | AS40: 円 | CQ40: 25ｍ冬 | CR40: 7 | CS40: 184560 | CT40: 184560 | CU40: 229680 | CV40: 369120 | CW40: 414240 | CX40: 598800 | DA40: 2231 | DB40: 2232 | DC40: 2233 | DD40: 2234 | DE40: 2235 | DF40: 2236
J41: =施設利用申込書!A37 -> 00:00:00 | Q41: =施設利用申込書!F37 ->  | W41: =施設利用申込書!I37 -> 0 | AS41: 円 | BC41: 円 | BI41: =VLOOKUP(CF41,料金マスタ!$A$2:$B$145,2,FALSE) -> 120300 | BR41: アマ | BS41: 休日 | BT41: 50ｍ | BU41: D | BX41: =_xlfn.SWITCH(BR41,"アマ",1,"入徴",2,"プロ",3,"") -> 1 | BY41: =_xlfn.SWITCH(BS41,"平日",1,"休日",2,"") -> 2 | BZ41: =_xlfn.SWITCH(BT41,"50ｍ",1,"25ｍ夏",2,"25ｍ冬",3,"スケ",4,"") -> 1 | CA41: =_xlfn.SWITCH(BU41,"A",1,"B",2,"C",3,"D",4,"E",5,"F",6,"") -> 4 | CB41: =BX41&BY41&BZ41&CA41 -> 1214 | CD41: 1214 | CF41: 1214 | CQ41: スケ | CR41: 8 | CS41: =CS37*1.2 -> 237876 | CT41: 237876 | CU41: 299400 | CV41: 475764 | CW41: 537288 | CX41: 775164 | DA41: 2241 | DB41: 2242 | DC41: 2243 | DD41: 2244 | DE41: 2245 | DF41: 2246
L42: =施設利用申込書!R37 -> 00:00:00 | O42: ～ | P42: =施設利用申込書!X37 -> 00:00:00 | W42: =IF($Q$22="有","減免あり",IF($Q$22="無","減免なし",IF($Q$22="",""))) -> 減免あり | AB42: =IF(Q41="(土)","土日祝料金 1.2割増",IF(Q41="(日)","土日祝料金 1.2割増",IF(Q41="(月)","平日料金",IF(Q41="(火)","平日料金",IF(Q41="(水)","平日料金",IF(Q41="(木)","平日料金",IF(Q41="(金)","平日料金",IF(Q41="","")))))))) ->  | AS42: 円 | CN42: プロ | CO42: 平日 | CQ42: 50ｍ | CR42: 1 | CS42: 300770 | CT42: 300770 | CU42: 975960 | CV42: 601540 | CW42: 676730 | CX42: 977500 | CY42: プロ | CZ42: 平日 | DA42: 3111 | DB42: 3112 | DC42: 3113 | DD42: 3114 | DE42: 3115 | DF42: 3116
J43: =施設利用申込書!A38 -> 00:00:00 | Q43: =施設利用申込書!F38 ->  | W43: =施設利用申込書!I38 -> 0 | AS43: 円 | BC43: 円 | BI43: =VLOOKUP(CF43,料金マスタ!$A$2:$B$145,2,FALSE) -> 1173000 | BR43: プロ | BS43: 休日 | BT43: 50ｍ | BU43: F | BX43: =_xlfn.SWITCH(BR43,"アマ",1,"入徴",2,"プロ",3,"") -> 3 | BY43: =_xlfn.SWITCH(BS43,"平日",1,"休日",2,"") -> 2 | BZ43: =_xlfn.SWITCH(BT43,"50ｍ",1,"25ｍ夏",2,"25ｍ冬",3,"スケ",4,"") -> 1 | CA43: =_xlfn.SWITCH(BU43,"A",1,"B",2,"C",3,"D",4,"E",5,"F",6,"") -> 6 | CB43: =BX43&BY43&BZ43&CA43 -> 3216 | CD43: 1111 | CF43: 3216 | CP43: 夏 | CQ43: 25ｍ夏 | CR43: 2 | CS43: 102530 | CT43: 102530 | CU43: 126460 | CV43: 205070 | CW43: 228990 | CX43: 331530 | DA43: 3121 | DB43: 3122 | DC43: 3123 | DD43: 3124 | DE43: 3125 | DF43: 3126
L44: =施設利用申込書!R38 -> 00:00:00 | O44: ～ | P44: =施設利用申込書!X38 -> 00:00:00 | W44: =IF($Q$22="有","減免あり",IF($Q$22="無","減免なし",IF($Q$22="",""))) -> 減免あり | AB44: =IF(Q43="(土)","土日祝料金 1.2割増",IF(Q43="(日)","土日祝料金 1.2割増",IF(Q43="(月)","平日料金",IF(Q43="(火)","平日料金",IF(Q43="(水)","平日料金",IF(Q43="(木)","平日料金",IF(Q43="(金)","平日料金",IF(Q43="","")))))))) ->  | AS44: 円 | CP44: 冬 | CQ44: 25ｍ冬 | CR44: 3 | CS44: 153800 | CT44: 153800 | CU44: 191400 | CV44: 307600 | CW44: 345200 | CX44: 499000 | DA44: 3131 | DB44: 3132 | DC44: 3133 | DD44: 3134 | DE44: 3135 | DF44: 3136
J45: 施 設 使 用 料 計 | Q45: 0 | AA45: 円 | AD45: 付属設備料使用料 | AR45: 0 | BB45: 円 | CQ45: スケ | CR45: 4 | CS45: 396470 | CT45: 396470 | CU45: 499000 | CV45: 792940 | CW45: 895480 | CX45: 1291950 | DA45: 3141 | DB45: 3142 | DC45: 3143 | DD45: 3144 | DE45: 3145 | DF45: 3146
J46: 早 朝 時 間 外 | Q46: 0 | AA46: 円 | AD46: 冷 暖 房 料 | AR46: 0 | BB46: 円 | CO46: 休日 | CQ46: 50ｍ | CR46: 5 | CS46: =CS42*1.2 -> 360924 | CT46: =CT42*1.2 -> 360924 | CU46: 1171152 | CV46: 721848 | CW46: 812076 | CX46: 1173000 | CZ46: 休日 | DA46: 3211 | DB46: 3212 | DC46: 3213 | DD46: 3214 | DE46: 3215 | DF46: 3216
J47: 使用料減免額計 | Q47: 0 | AA47: 円 | AD47: 合 計 | AR47: =SUM(Q45+Q46+AR45-Q47) -> 0 | BB47: 円 | CQ47: 25ｍ夏 | CR47: 6 | CS47: =CS43*1.2 -> 123036 | CT47: 123036 | CU47: 151752 | CV47: 246084 | CW47: 274788 | CX47: 397836 | DA47: 3221 | DB47: 3222 | DC47: 3223 | DD47: 3224 | DE47: 3225 | DF47: 3226
CQ48: 25ｍ冬 | CR48: 7 | CS48: 184560 | CT48: 184560 | CU48: 229680 | CV48: 369120 | CW48: 414240 | CX48: 598800 | DA48: 3231 | DB48: 3232 | DC48: 3233 | DD48: 3234 | DE48: 3235 | DF48: 3236
J49: 備 考 | BR49: アマ | BS49: 平日 | CQ49: スケ | CR49: 8 | CS49: =CS45*1.2 -> 475764 | CT49: 475764 | CU49: 598800 | CV49: 951528 | CW49: 1074576 | CX49: 1550340 | DA49: 3241 | DB49: 3242 | DC49: 3243 | DD49: 3244 | DE49: 3245 | DF49: 3246
BR50: 入徴 | BS50: 休日
BR51: プロ
AK53: 使用料受領印

Sheet 団体 (hidden)
B4: 総合プール団体利用申込書
L6: 令和 | N6: 年 | P6: 月 | R6: 日 | AO6: 令和 | AQ6: 1月 | AT6: 1日 | AV6: 1年
AQ7: 2月 | AT7: 2日 | AV7: 2年
B8: 福岡県立総合プール 施設長 殿 | AQ8: 3月 | AT8: 3日 | AV8: 3年
N9: ※欄のみご記入ください | AQ9: 4月 | AT9: 4日 | AV9: 4年
B10: 団体名称 | D10: （TEL | E10: =施設利用申込書!BK18 -> 00 | H10: ) | J10: ※代表者職氏名 | AQ10: 5月 | AT10: 5日 | AV10: 5年
B11: =施設利用申込書!I11 -> 0 | J11: =施設利用申込書!I14 -> 0 | AQ11: 6月 | AT11: 6日 | AV11: 6年
B12: ※ 利 用 期 間 | F12: =施設利用申込書!A29 -> 00:00:00 | J12: ～ | AQ12: 7月 | AT12: 7日 | AV12: 7年
AQ13: 8月 | AT13: 8日 | AV13: 8年
B14: ※ 利 用 施 設 | AQ14: 9月 | AT14: 9日 | AV14: 9年
AQ15: 10月 | AT15: 10日 | AV15: 10年
F16: 指導責任者氏名 | L16: 利用合計人員 | AQ16: 11月 | AT16: 11日 | AV16: 11年
B17: ※ 利 用 人 員 及 び 内 訳 | F17: =施設利用申込書!I14 -> 0 | L17: =SUM(F19,I19,L19) -> 0 | Q17: 名 | AQ17: 12月 | AT17: 12日 | AV17: 12年
F18: 小学生以下 | I18: 中学高校生 | L18: 大 人 | O18: 貸 靴 | AT18: 13日 | AV18: 13年
H19: 名 | K19: 名 | N19: 名 | Q19: 名 | AT19: 14日 | AV19: 14年
B20: 以下スタッフ入力
F21: 小学生以下 | J21: 円× | K21: =F19 -> 0 | L21: 名× ％＝ | M21: 0 | N21: % = | O21: =I21*K21*M21/100 -> 0 | Q21: 円 | AT21: 15日 | AV21: 15年
F22: 中学高校生 | J22: 円× | K22: =I19 -> 0 | L22: 名× ％＝ | N22: % = | Q22: 円 | AT22: 16日 | AV22: 16年
B23: 利 用 料 | F23: 大 人 | J23: 円× | K23: =L19 -> 0 | L23: 名× ％＝ | N23: % = | Q23: 円 | AT23: 17日 | AV23: 17年
B24: 及 び | F24: 貸靴使用料 | I24: 390 | J24: 円× | L24: 名 ＝ | O24: =I24*K24 -> 0 | Q24: 円 | AT24: 18日 | AV24: 18年
F25: 施設維持費 | I25: 50 | J25: 円× | L25: 名 ＝ | O25: =I25*K25 -> 0 | Q25: 円 | AT25: 19日 | AV25: 19年
B26: 内 訳 | F26: 合 計 | AT26: 20日 | AV26: 20年
M27: =SUM(O21:P25) -> 0 | Q27: 円 | AT27: 21日 | AV27: 21年
AT28: 22日 | AV28: 22年
B29: 備 考 | O29: 受領印 | AT29: 23日 | AV29: 23年
AT30: 24日 | AV30: 24年
AT31: 25日 | AV31: 25年
AT32: 26日 | AV32: 26年
I33: 指定管理者：アクシオン福岡プロジェクトチーム | AT33: 27日 | AV33: 27年
AT34: 28日 | AV34: 28年
AT35: 29日 | AV35: 29年
AT36: 30日 | AV36: 30年
AT37: 31日 | AV37: 31年
AV38: 32年
AV39: 33年
AV40: 34年
AV41: 35年
AV42: 36年
AV43: 37年
AV44: 38年
AV45: 39年
AV46: 40年
AV47: 41年
AV48: 42年
AV49: 43年
AV50: 44年
AV51: 45年
AV52: 46年
AV53: 47年
AV54: 48年
AV55: 49年
AV56: 50年
AV57: 51年
AV58: 52年
AV59: 53年
AV60: 54年
AV61: 55年
AV62: 56年
AV63: 57年
AV64: 58年
AV65: 59年
AV66: 60年
AV67: 61年
AV68: 62年
AV69: 63年
AV70: 64年
AV71: 65年
AV72: 66年
AV73: 67年
AV74: 68年
AV75: 69年
AV76: 70年
AV77: 71年
AV78: 72年
AV79: 73年
AV80: 74年
AV81: 75年
AV82: 76年
AV83: 77年
AV84: 78年
AV85: 79年
AV86: 80年
AV87: 81年
AV88: 82年
AV89: 83年
AV90: 84年
AV91: 85年
AV92: 86年
AV93: 87年
AV94: 88年
AV95: 89年
AV96: 90年
AV97: 91年
AV98: 92年
AV99: 93年
AV100: 94年
AV101: 95年
AV102: 96年
AV103: 97年
AV104: 98年

Sheet 学校(改) (hidden)
B4: 総合プール学校利用申込書
K6: 令和 | M6: 年 | O6: 月 | Q6: 日
B8: 福岡県立総合プール 施設長 殿
M9: ※印の欄のみご記入ください
B10: 団体名称 | D10: (TEL | E10: =施設利用申込書!BK18 -> 00 | H10: ) | J10: ※学校長氏名 | P10: 印
B11: =施設利用申込書!I11 -> 0
B12: ※所在地(請求先住所) | G12: 〒 | H12: =施設利用申込書!L24 -> 0 | I12: - | J12: =施設利用申込書!P24 -> 0
B13: =施設利用申込書!L25 -> 0
B14: ※申込者 | H14: ※連絡先 | J14: TEL： | L14: =施設利用申込書!K16&施設利用申込書!L16&施設利用申込書!P16&施設利用申込書!Q16&施設利用申込書!V16&施設利用申込書!W16 -> ()-
B15: =施設利用申込書!I14 -> 0 | J15: FAX： | L15: =施設利用申込書!AE16&施設利用申込書!AF16&施設利用申込書!AJ16&施設利用申込書!AK16&施設利用申込書!AP16&施設利用申込書!AQ16 -> ()-
B16: ※ 利 用 期 間 | F16: =施設利用申込書!A29 -> 00:00:00 | J16: ～
B18: ※ 利 用 施 設
B20: ※ 利 用 人 員 | F20: 児童以下 | H20: 生 徒 | J20: 教 員 | L20: 合 計 | O20: 貸 靴
G21: 名 | I21: 名 | K21: 名 | N21: 名 | Q21: 名
B22: 以下スタッフ入力
B23: 利用料及び内訳 | F23: 施設利用料 | L23: 円× | M23: 0.5 | N23: ＝ | O23: =I23*0.5 -> 0 | Q23: 円
F24: 個 | G24: 児 童 | J24: 円× | K24: =F21 -> 0 | L24: 名× | M24: 0.5 | N24: ＝ | O24: =I24*K24*0.5 -> 0 | Q24: 円
F25: 人 | G25: 生 徒 | J25: 円× | L25: 名× | M25: 0.5 | N25: ＝ | O25: =I25*K25*0.5 -> 0 | Q25: 円
F26: 会議室利用料 | I26: 560 | J26: 円× | L26: 時間×５０％＝ | M26: 0.5 | N26: ＝ | O26: =I26*K26*0.5 -> 0 | Q26: 円
F27: 貸靴使用料 | I27: 390 | J27: 円× | K27: =O21 -> 0 | L27: 名 ＝ | N27: ＝ | O27: =I27*K27 -> 0 | Q27: 円
F28: 施設維持費 | I28: 50 | J28: 円× | L28: 名 ＝ | O28: =I28*K28 -> 0 | Q28: 円
F29: 合 計
Q30: 円
B32: 備 考 | F32: 福岡県立体育・スポーツ施設の使用料及び利用料金に | O32: 受領印
F33: 関する規則 第五条第１項六号に該当し、施設占用又は
F34: 個人使用料の５０％減免
J37: 指定管理者：アクシオン福岡プロジェクトチーム

Sheet 消防 (hidden)
B4: 総合プール消防利用申込書
K7: 令和 年 月 日
B9: 福岡県立総合プール 施設長 殿
N10: ※欄のみご記入ください
B11: ※団体名称 | J11: ※団体担当者氏名
B13: (TEL ) (FAX )
B14: ※ 利 用 日 時 | F14: 令和 年 月 日 （ ）
F15: 時 分 | K15: ～ | L15: 時 分
B16: ※ 利 用 施 設 | F16: １. ５０ｍプール ２. ２５ｍプール ３. 飛び込みプール
B18: ※ 利 用 人 員 | F18: 入水あり | I18: 入水なし | L18: 合 計
H19: 名 | K19: 名 | L19: 名
F20: 施設利用料 | I20: 560 | J20: 円× | L20: 名×５０％＝ | Q20: 円
B21: 施 設 料
B22: 及 び | F22: 合 計
B23: 内 訳 | Q23: 円
B25: ※ 車 両 | Q25: 台
B26: 備 考 | F26: 福岡県立体育・スポーツ施設使用料条例別表第三備考七、 | O26: 受領印
F27: または同条例施行規則第五条第１項第十四号に該当し、
F28: 個人使用料の５０％減免
H31: 指定管理者：アクシオン福岡プロジェクトチーム
